Workbook

Sheet DropConfig
A1: ID | B1: dropGroupID | D1: dropType | E1: showItemId
A2: int | B2: int[] | D2: int | E2: int[]
E3: c
A4: 掉落ID | B4: 掉落组ID | C4: 掉落组说明 | D4: 掉落方式 1.每个掉落组根据掉落概率掉落 2.所有掉落组根据掉落权重掉落 | E4: 显示ID -99:通过工厂表决定显示 | G4: 完整值
A5: 10001 | B5: 10001 | C5: 测试未正式使用 | D5: 2 | E5: -1 | F5: 关卡中道具：火焰遗物 | H5: 掉落方式1是指对下属的每个group分别进行概率判断掉不掉
A6: 10002 | B6: 10002 | C6: 测试未正式使用 | D6: 2 | E6: -1 | F6: 关卡中道具：燃料 | H6: 掉落方式2是指所有掉落组一起来算权重，看掉哪一个，必然只掉一个
A7: 10003 | B7: 10003 | C7: 测试未正式使用 | D7: 2 | E7: -1 | F7: 关卡中道具：重物

Sheet DropGroupConfig
A1: ID | B1: dropRate | C1: dropItemID
A2: int | B2: int | C2: int[]
A4: 掉落组ID | B4: 掉落概率\权重 1000为100% | D4: 备注1 | E4: 备注2 | F4: 备注3 （完整版数据）
A5: 10001 | B5: 1000 | C5: 10001 | D5: 火焰遗物
A6: 10002 | B6: 1000 | C6: 10002 | D6: 燃料
A7: 10003 | B7: 1000 | C7: 10003 | D7: 重物

Sheet DropItemConfig
A1: ID | B1: dropItemType | C1: itemID | E1: dropMinV | F1: dropMaxV | G1: dropCountGoupID
A2: int | B2: int | C2: int[] | E2: int | F2: int | G2: int
B3: j
A4: ID号 | B4: 道具类型 见说明页 | C4: 道具ID | D4: 道具名称（策划） | E4: 掉落最小数量 | F4: 掉落最大数量 | G4: 掉落数量使用哪种分布方式 对应DropCountConfig的GroupID 默认-1，平均分布 | H4: 实际掉落情况 | I4: 标准数量
A5: 10001 | B5: 1 | C5: 20001 | D5: 火焰遗物 | E5: 1 | F5: 1 | G5: -1 | H5: =IF(ISERR(FIND(";",C5)),VLOOKUP(INT(C5),[1]ItemConfig!$A:$C,3,FALSE),VLOOKUP(INT(LEFT(C5,FIND(";",C5)-1)),[1]ItemConfig!$A:$C,3,FALSE)&"(等"&LEN(C5)-LEN(SUBSTITUTE(C5,";",))+1&"个道具)")&" × "&E5&" - "&F5 -> 
A6: 10002 | B6: 1 | C6: 20002 | D6: 燃料 | E6: 1 | F6: 1 | G6: -1 | H6: =IF(ISERR(FIND(";",C6)),VLOOKUP(INT(C6),[1]ItemConfig!$A:$C,3,FALSE),VLOOKUP(INT(LEFT(C6,FIND(";",C6)-1)),[1]ItemConfig!$A:$C,3,FALSE)&"(等"&LEN(C6)-LEN(SUBSTITUTE(C6,";",))+1&"个道具)")&" × "&E6&" - "&F6 -> 
A7: 10003 | B7: 1 | C7: 20003 | D7: 重物，关卡内测试用 | E7: 1 | F7: 1 | G7: -1 | H7: =IF(ISERR(FIND(";",C7)),VLOOKUP(INT(C7),[1]ItemConfig!$A:$C,3,FALSE),VLOOKUP(INT(LEFT(C7,FIND(";",C7)-1)),[1]ItemConfig!$A:$C,3,FALSE)&"(等"&LEN(C7)-LEN(SUBSTITUTE(C7,";",))+1&"个道具)")&" × "&E7&" - "&F7 -> 

Sheet DropCountConfig
A1: ID | B1: groupID | C1: proportion | D1: weight
A2: int | B2: int | C2: int | D2: int
C4: 最高比例 | D4: 权重 | E4: 掉率 | F4: 实际值
A5: 1 | B5: 1 | C5: 10 | D5: 2 | E5: =IF(D5="","",D5/SUMIF(B:B,B5,D:D)) -> 0.02150537634 | F5: =SUMPRODUCT(C5:C14,E5:E14) -> 50.53763441
A6: 2 | B6: 1 | C6: 20 | D6: 4 | E6: 0.04301075269
A7: 3 | B7: 1 | C7: 30 | D7: 8 | E7: 0.08602150538
A8: 4 | B8: 1 | C8: 40 | D8: 16 | E8: 0.1720430108
A9: 5 | B9: 1 | C9: 50 | D9: 32 | E9: 0.3440860215
A10: 6 | B10: 1 | C10: 60 | D10: 16 | E10: =IF(D10="","",D10/SUMIF(B:B,B10,D:D)) -> 0.1720430108
A11: 7 | B11: 1 | C11: 70 | D11: 8 | E11: 0.08602150538
A12: 8 | B12: 1 | C12: 80 | D12: 4 | E12: 0.04301075269
A13: 9 | B13: 1 | C13: 90 | D13: 2 | E13: 0.02150537634
A14: 10 | B14: 1 | C14: 100 | D14: 1 | E14: 0.01075268817
A16: 11 | B16: 2 | C16: 10 | D16: 1 | E16: 0.01041666667 | F16: =SUMPRODUCT(C16:C25,E16:E25) -> 74.79166667
A17: 12 | B17: 2 | C17: 20 | D17: 2 | E17: 0.02083333333
A18: 13 | B18: 2 | C18: 30 | D18: 3 | E18: 0.03125
A19: 14 | B19: 2 | C19: 40 | D19: 5 | E19: 0.05208333333
A20: 15 | B20: 2 | C20: 50 | D20: 7 | E20: 0.07291666667
A21: 16 | B21: 2 | C21: 60 | D21: 9 | E21: 0.09375
A22: 17 | B22: 2 | C22: 70 | D22: 15 | E22: 0.15625
A23: 18 | B23: 2 | C23: 80 | D23: 16 | E23: 0.1666666667
A24: 19 | B24: 2 | C24: 90 | D24: 18 | E24: 0.1875
A25: 20 | B25: 2 | C25: 100 | D25: 20 | E25: 0.2083333333
A27: 21 | B27: 3 | C27: 10 | D27: 1024 | E27: 0.6671009772 | F27: =SUMPRODUCT(C27:C36,E27:E36) -> 16.59934853
A28: 22 | B28: 3 | C28: 20 | D28: 256 | E28: 0.1667752443
A29: 23 | B29: 3 | C29: 30 | D29: 128 | E29: 0.08338762215
A30: 24 | B30: 3 | C30: 40 | D30: 64 | E30: 0.04169381107
A31: 25 | B31: 3 | C31: 50 | D31: 32 | E31: 0.02084690554
A32: 26 | B32: 3 | C32: 60 | D32: 16 | E32: 0.01042345277
A33: 27 | B33: 3 | C33: 70 | D33: 8 | E33: 0.005211726384
A34: 28 | B34: 3 | C34: 80 | D34: 4 | E34: 0.002605863192
A35: 29 | B35: 3 | C35: 90 | D35: 2 | E35: 0.001302931596
A36: 30 | B36: 3 | C36: 100 | D36: 1 | E36: 0.000651465798

Sheet 说明页
A1: 表名称 | B1: DropItemConfig
A2: 字段 | B2: dropItemType
A3: 说明 | B3: 道具类型 1=道具 2=声望任务 3=装备星级 4=装备品质 5=假五星 6=装备工厂 7=装备效果 8=装备私物效果
B7: 字段关联表缩写字母 | C7: 关联表
B8: l | C8: LanguageChinese
B9: w | C9: Item
B10: c | C10: chouka
B22: DropItemConfigID：暂定为5位数字，按照合成类型决定首位。 如果有需求，再用第二位进一步区分。
B24: 抽卡合成类型对应表（暂定）
B26: 道具类型 1=道具 2=声望任务 3=装备星级 4=装备品质 5=假五星 6=装备工厂 7=装备效果 8=装备私物效果

Sheet 道具表
A1: 道具ID | B1: 道具名称 语言表ID | C1: 道具描述 语言表ID | D1: 道具名称（Item表） | E1: 道具名称（语言表） | F1: 道具描述（语言表）
A2: 1001 | B2: =IF(A2="","",VLOOKUP(A2,[1]ItemConfig!$A:$B,2,FALSE)) -> 1001 | C2: =IF(A2="","",VLOOKUP(A2,[1]ItemConfig!$A:$D,4,FALSE)) -> 10011 | D2: =IF(A2="","",VLOOKUP(A2,[1]ItemConfig!$A:$C,3,FALSE)) -> 金币 | E2: =IF(A2="","",VLOOKUP(B2,[2]语言配置表!$A:$E,5,FALSE)) ->  | F2: =IF(A2="","",VLOOKUP(C2,[2]语言配置表!$A:$E,5,FALSE)) -> 
A3: 1002 | B3: =IF(A3="","",VLOOKUP(A3,[1]ItemConfig!$A:$B,2,FALSE)) -> 1002 | C3: =IF(A3="","",VLOOKUP(A3,[1]ItemConfig!$A:$D,4,FALSE)) -> 10021 | D3: =IF(A3="","",VLOOKUP(A3,[1]ItemConfig!$A:$C,3,FALSE)) -> 钻石 | E3: =IF(A3="","",VLOOKUP(B3,[2]语言配置表!$A:$E,5,FALSE)) ->  | F3: =IF(A3="","",VLOOKUP(C3,[2]语言配置表!$A:$E,5,FALSE)) ->  | H3: 2
A4: 1003 | B4: =IF(A4="","",VLOOKUP(A4,[1]ItemConfig!$A:$B,2,FALSE)) -> 1003 | C4: =IF(A4="","",VLOOKUP(A4,[1]ItemConfig!$A:$D,4,FALSE)) -> 10031 | D4: =IF(A4="","",VLOOKUP(A4,[1]ItemConfig!$A:$C,3,FALSE)) -> 英雄经验 | E4: =IF(A4="","",VLOOKUP(B4,[2]语言配置表!$A:$E,5,FALSE)) ->  | F4: =IF(A4="","",VLOOKUP(C4,[2]语言配置表!$A:$E,5,FALSE)) ->  | H4: 7101 | I4: =IF(H5="","",";") -> ; | J4: =_xlfn.CONCAT(H4:I32) -> 7101;7102;7104;7304;7402;7403;7502;7601;7602
A5: 1004 | B5: =IF(A5="","",VLOOKUP(A5,[1]ItemConfig!$A:$B,2,FALSE)) -> 5 | C5: =IF(A5="","",VLOOKUP(A5,[1]ItemConfig!$A:$D,4,FALSE)) -> 10041 | D5: =IF(A5="","",VLOOKUP(A5,[1]ItemConfig!$A:$C,3,FALSE)) -> 加雷斯·风暴 | E5: =IF(A5="","",VLOOKUP(B5,[2]语言配置表!$A:$E,5,FALSE)) -> 0 | F5: =IF(A5="","",VLOOKUP(C5,[2]语言配置表!$A:$E,5,FALSE)) ->  | H5: 7102 | I5: =IF(H6="","",";") -> ;
A6: 1005 | B6: =IF(A6="","",VLOOKUP(A6,[1]ItemConfig!$A:$B,2,FALSE)) -> 6 | C6: =IF(A6="","",VLOOKUP(A6,[1]ItemConfig!$A:$D,4,FALSE)) -> 10051 | D6: =IF(A6="","",VLOOKUP(A6,[1]ItemConfig!$A:$C,3,FALSE)) -> 马修·星辰 | E6: =IF(A6="","",VLOOKUP(B6,[2]语言配置表!$A:$E,5,FALSE)) -> 0 | F6: =IF(A6="","",VLOOKUP(C6,[2]语言配置表!$A:$E,5,FALSE)) ->  | H6: 7104 | I6: ;
A7: 1006 | B7: =IF(A7="","",VLOOKUP(A7,[1]ItemConfig!$A:$B,2,FALSE)) -> 13 | C7: =IF(A7="","",VLOOKUP(A7,[1]ItemConfig!$A:$D,4,FALSE)) -> 10061 | D7: =IF(A7="","",VLOOKUP(A7,[1]ItemConfig!$A:$C,3,FALSE)) -> 卢克·净魂 | E7: =IF(A7="","",VLOOKUP(B7,[2]语言配置表!$A:$E,5,FALSE)) -> 0 | F7: =IF(A7="","",VLOOKUP(C7,[2]语言配置表!$A:$E,5,FALSE)) ->  | H7: 7304 | I7: ;
A8: 1007 | B8: =IF(A8="","",VLOOKUP(A8,[1]ItemConfig!$A:$B,2,FALSE)) -> 16 | C8: =IF(A8="","",VLOOKUP(A8,[1]ItemConfig!$A:$D,4,FALSE)) -> 10071 | D8: =IF(A8="","",VLOOKUP(A8,[1]ItemConfig!$A:$C,3,FALSE)) -> 莱恩·影踪 | E8: =IF(A8="","",VLOOKUP(B8,[2]语言配置表!$A:$E,5,FALSE)) -> 0 | F8: =IF(A8="","",VLOOKUP(C8,[2]语言配置表!$A:$E,5,FALSE)) ->  | H8: 7402 | I8: ;
A9: 1008 | B9: =IF(A9="","",VLOOKUP(A9,[1]ItemConfig!$A:$B,2,FALSE)) ->  | C9: =IF(A9="","",VLOOKUP(A9,[1]ItemConfig!$A:$D,4,FALSE)) ->  | D9: =IF(A9="","",VLOOKUP(A9,[1]ItemConfig!$A:$C,3,FALSE)) ->  | E9: =IF(A9="","",VLOOKUP(B9,[2]语言配置表!$A:$E,5,FALSE)) ->  | F9: =IF(A9="","",VLOOKUP(C9,[2]语言配置表!$A:$E,5,FALSE)) ->  | H9: 7403 | I9: ;
A10: 1009 | B10: =IF(A10="","",VLOOKUP(A10,[1]ItemConfig!$A:$B,2,FALSE)) ->  | C10: =IF(A10="","",VLOOKUP(A10,[1]ItemConfig!$A:$D,4,FALSE)) ->  | D10: =IF(A10="","",VLOOKUP(A10,[1]ItemConfig!$A:$C,3,FALSE)) ->  | E10: =IF(A10="","",VLOOKUP(B10,[2]语言配置表!$A:$E,5,FALSE)) ->  | F10: =IF(A10="","",VLOOKUP(C10,[2]语言配置表!$A:$E,5,FALSE)) ->  | H10: 7502 | I10: ;
A11: 1010 | B11: =IF(A11="","",VLOOKUP(A11,[1]ItemConfig!$A:$B,2,FALSE)) ->  | C11: =IF(A11="","",VLOOKUP(A11,[1]ItemConfig!$A:$D,4,FALSE)) ->  | D11: =IF(A11="","",VLOOKUP(A11,[1]ItemConfig!$A:$C,3,FALSE)) ->  | E11: =IF(A11="","",VLOOKUP(B11,[2]语言配置表!$A:$E,5,FALSE)) ->  | F11: =IF(A11="","",VLOOKUP(C11,[2]语言配置表!$A:$E,5,FALSE)) ->  | H11: 7601 | I11: ;
A12: 1011 | B12: =IF(A12="","",VLOOKUP(A12,[1]ItemConfig!$A:$B,2,FALSE)) ->  | C12: =IF(A12="","",VLOOKUP(A12,[1]ItemConfig!$A:$D,4,FALSE)) ->  | D12: =IF(A12="","",VLOOKUP(A12,[1]ItemConfig!$A:$C,3,FALSE)) ->  | E12: =IF(A12="","",VLOOKUP(B12,[2]语言配置表!$A:$E,5,FALSE)) ->  | F12: =IF(A12="","",VLOOKUP(C12,[2]语言配置表!$A:$E,5,FALSE)) ->  | H12: 7602
A13: 1012 | B13: =IF(A13="","",VLOOKUP(A13,[1]ItemConfig!$A:$B,2,FALSE)) ->  | C13: =IF(A13="","",VLOOKUP(A13,[1]ItemConfig!$A:$D,4,FALSE)) ->  | D13: =IF(A13="","",VLOOKUP(A13,[1]ItemConfig!$A:$C,3,FALSE)) ->  | E13: =IF(A13="","",VLOOKUP(B13,[2]语言配置表!$A:$E,5,FALSE)) ->  | F13: =IF(A13="","",VLOOKUP(C13,[2]语言配置表!$A:$E,5,FALSE)) -> 
A14: 1013 | B14: =IF(A14="","",VLOOKUP(A14,[1]ItemConfig!$A:$B,2,FALSE)) ->  | C14: =IF(A14="","",VLOOKUP(A14,[1]ItemConfig!$A:$D,4,FALSE)) ->  | D14: =IF(A14="","",VLOOKUP(A14,[1]ItemConfig!$A:$C,3,FALSE)) ->  | E14: =IF(A14="","",VLOOKUP(B14,[2]语言配置表!$A:$E,5,FALSE)) ->  | F14: =IF(A14="","",VLOOKUP(C14,[2]语言配置表!$A:$E,5,FALSE)) -> 
A15: 1014 | B15: =IF(A15="","",VLOOKUP(A15,[1]ItemConfig!$A:$B,2,FALSE)) ->  | C15: =IF(A15="","",VLOOKUP(A15,[1]ItemConfig!$A:$D,4,FALSE)) ->  | D15: =IF(A15="","",VLOOKUP(A15,[1]ItemConfig!$A:$C,3,FALSE)) ->  | E15: =IF(A15="","",VLOOKUP(B15,[2]语言配置表!$A:$E,5,FALSE)) ->  | F15: =IF(A15="","",VLOOKUP(C15,[2]语言配置表!$A:$E,5,FALSE)) -> 
B16: =IF(A16="","",VLOOKUP(A16,[1]ItemConfig!$A:$B,2,FALSE)) ->  | C16: =IF(A16="","",VLOOKUP(A16,[1]ItemConfig!$A:$D,4,FALSE)) ->  | D16: =IF(A16="","",VLOOKUP(A16,[1]ItemConfig!$A:$C,3,FALSE)) ->  | E16: =IF(A16="","",VLOOKUP(B16,[2]语言配置表!$A:$E,5,FALSE)) ->  | F16: =IF(A16="","",VLOOKUP(C16,[2]语言配置表!$A:$E,5,FALSE)) -> 
A17: 2001 | B17: =IF(A17="","",VLOOKUP(A17,[1]ItemConfig!$A:$B,2,FALSE)) ->  | C17: =IF(A17="","",VLOOKUP(A17,[1]ItemConfig!$A:$D,4,FALSE)) ->  | D17: =IF(A17="","",VLOOKUP(A17,[1]ItemConfig!$A:$C,3,FALSE)) ->  | E17: =IF(A17="","",VLOOKUP(B17,[2]语言配置表!$A:$E,5,FALSE)) ->  | F17: =IF(A17="","",VLOOKUP(C17,[2]语言配置表!$A:$E,5,FALSE)) -> 
A18: 2002 | B18: =IF(A18="","",VLOOKUP(A18,[1]ItemConfig!$A:$B,2,FALSE)) ->  | C18: =IF(A18="","",VLOOKUP(A18,[1]ItemConfig!$A:$D,4,FALSE)) ->  | D18: =IF(A18="","",VLOOKUP(A18,[1]ItemConfig!$A:$C,3,FALSE)) ->  | E18: =IF(A18="","",VLOOKUP(B18,[2]语言配置表!$A:$E,5,FALSE)) ->  | F18: =IF(A18="","",VLOOKUP(C18,[2]语言配置表!$A:$E,5,FALSE)) -> 
A19: 2003 | B19: =IF(A19="","",VLOOKUP(A19,[1]ItemConfig!$A:$B,2,FALSE)) ->  | C19: =IF(A19="","",VLOOKUP(A19,[1]ItemConfig!$A:$D,4,FALSE)) ->  | D19: =IF(A19="","",VLOOKUP(A19,[1]ItemConfig!$A:$C,3,FALSE)) ->  | E19: =IF(A19="","",VLOOKUP(B19,[2]语言配置表!$A:$E,5,FALSE)) ->  | F19: =IF(A19="","",VLOOKUP(C19,[2]语言配置表!$A:$E,5,FALSE)) -> 
A20: 2004 | B20: =IF(A20="","",VLOOKUP(A20,[1]ItemConfig!$A:$B,2,FALSE)) ->  | C20: =IF(A20="","",VLOOKUP(A20,[1]ItemConfig!$A:$D,4,FALSE)) ->  | D20: =IF(A20="","",VLOOKUP(A20,[1]ItemConfig!$A:$C,3,FALSE)) ->  | E20: =IF(A20="","",VLOOKUP(B20,[2]语言配置表!$A:$E,5,FALSE)) ->  | F20: =IF(A20="","",VLOOKUP(C20,[2]语言配置表!$A:$E,5,FALSE)) -> 
B21: =IF(A21="","",VLOOKUP(A21,[1]ItemConfig!$A:$B,2,FALSE)) ->  | C21: =IF(A21="","",VLOOKUP(A21,[1]ItemConfig!$A:$D,4,FALSE)) ->  | D21: =IF(A21="","",VLOOKUP(A21,[1]ItemConfig!$A:$C,3,FALSE)) ->  | E21: =IF(A21="","",VLOOKUP(B21,[2]语言配置表!$A:$E,5,FALSE)) ->  | F21: =IF(A21="","",VLOOKUP(C21,[2]语言配置表!$A:$E,5,FALSE)) -> 
B22: =IF(A22="","",VLOOKUP(A22,[1]ItemConfig!$A:$B,2,FALSE)) ->  | C22: =IF(A22="","",VLOOKUP(A22,[1]ItemConfig!$A:$D,4,FALSE)) ->  | D22: =IF(A22="","",VLOOKUP(A22,[1]ItemConfig!$A:$C,3,FALSE)) ->  | E22: =IF(A22="","",VLOOKUP(B22,[2]语言配置表!$A:$E,5,FALSE)) ->  | F22: =IF(A22="","",VLOOKUP(C22,[2]语言配置表!$A:$E,5,FALSE)) -> 
A23: 2007 | B23: =IF(A23="","",VLOOKUP(A23,[1]ItemConfig!$A:$B,2,FALSE)) ->  | C23: =IF(A23="","",VLOOKUP(A23,[1]ItemConfig!$A:$D,4,FALSE)) ->  | D23: =IF(A23="","",VLOOKUP(A23,[1]ItemConfig!$A:$C,3,FALSE)) ->  | E23: =IF(A23="","",VLOOKUP(B23,[2]语言配置表!$A:$E,5,FALSE)) ->  | F23: =IF(A23="","",VLOOKUP(C23,[2]语言配置表!$A:$E,5,FALSE)) -> 
A24: 2008 | B24: =IF(A24="","",VLOOKUP(A24,[1]ItemConfig!$A:$B,2,FALSE)) ->  | C24: =IF(A24="","",VLOOKUP(A24,[1]ItemConfig!$A:$D,4,FALSE)) ->  | D24: =IF(A24="","",VLOOKUP(A24,[1]ItemConfig!$A:$C,3,FALSE)) ->  | E24: =IF(A24="","",VLOOKUP(B24,[2]语言配置表!$A:$E,5,FALSE)) ->  | F24: =IF(A24="","",VLOOKUP(C24,[2]语言配置表!$A:$E,5,FALSE)) -> 
B25: =IF(A25="","",VLOOKUP(A25,[1]ItemConfig!$A:$B,2,FALSE)) ->  | C25: =IF(A25="","",VLOOKUP(A25,[1]ItemConfig!$A:$D,4,FALSE)) ->  | D25: =IF(A25="","",VLOOKUP(A25,[1]ItemConfig!$A:$C,3,FALSE)) ->  | E25: =IF(A25="","",VLOOKUP(B25,[2]语言配置表!$A:$E,5,FALSE)) ->  | F25: =IF(A25="","",VLOOKUP(C25,[2]语言配置表!$A:$E,5,FALSE)) -> 
A26: 2010 | B26: =IF(A26="","",VLOOKUP(A26,[1]ItemConfig!$A:$B,2,FALSE)) ->  | C26: =IF(A26="","",VLOOKUP(A26,[1]ItemConfig!$A:$D,4,FALSE)) ->  | D26: =IF(A26="","",VLOOKUP(A26,[1]ItemConfig!$A:$C,3,FALSE)) ->  | E26: =IF(A26="","",VLOOKUP(B26,[2]语言配置表!$A:$E,5,FALSE)) ->  | F26: =IF(A26="","",VLOOKUP(C26,[2]语言配置表!$A:$E,5,FALSE)) -> 
A27: 2011 | B27: =IF(A27="","",VLOOKUP(A27,[1]ItemConfig!$A:$B,2,FALSE)) ->  | C27: =IF(A27="","",VLOOKUP(A27,[1]ItemConfig!$A:$D,4,FALSE)) ->  | D27: =IF(A27="","",VLOOKUP(A27,[1]ItemConfig!$A:$C,3,FALSE)) ->  | E27: =IF(A27="","",VLOOKUP(B27,[2]语言配置表!$A:$E,5,FALSE)) ->  | F27: =IF(A27="","",VLOOKUP(C27,[2]语言配置表!$A:$E,5,FALSE)) -> 
A28: 2012 | B28: =IF(A28="","",VLOOKUP(A28,[1]ItemConfig!$A:$B,2,FALSE)) ->  | C28: =IF(A28="","",VLOOKUP(A28,[1]ItemConfig!$A:$D,4,FALSE)) ->  | D28: =IF(A28="","",VLOOKUP(A28,[1]ItemConfig!$A:$C,3,FALSE)) ->  | E28: =IF(A28="","",VLOOKUP(B28,[2]语言配置表!$A:$E,5,FALSE)) ->  | F28: =IF(A28="","",VLOOKUP(C28,[2]语言配置表!$A:$E,5,FALSE)) -> 
A29: 2013 | B29: =IF(A29="","",VLOOKUP(A29,[1]ItemConfig!$A:$B,2,FALSE)) ->  | C29: =IF(A29="","",VLOOKUP(A29,[1]ItemConfig!$A:$D,4,FALSE)) ->  | D29: =IF(A29="","",VLOOKUP(A29,[1]ItemConfig!$A:$C,3,FALSE)) ->  | E29: =IF(A29="","",VLOOKUP(B29,[2]语言配置表!$A:$E,5,FALSE)) ->  | F29: =IF(A29="","",VLOOKUP(C29,[2]语言配置表!$A:$E,5,FALSE)) -> 
A30: 2014 | B30: =IF(A30="","",VLOOKUP(A30,[1]ItemConfig!$A:$B,2,FALSE)) ->  | C30: =IF(A30="","",VLOOKUP(A30,[1]ItemConfig!$A:$D,4,FALSE)) ->  | D30: =IF(A30="","",VLOOKUP(A30,[1]ItemConfig!$A:$C,3,FALSE)) ->  | E30: =IF(A30="","",VLOOKUP(B30,[2]语言配置表!$A:$E,5,FALSE)) ->  | F30: =IF(A30="","",VLOOKUP(C30,[2]语言配置表!$A:$E,5,FALSE)) -> 
A31: 2015 | B31: =IF(A31="","",VLOOKUP(A31,[1]ItemConfig!$A:$B,2,FALSE)) ->  | C31: =IF(A31="","",VLOOKUP(A31,[1]ItemConfig!$A:$D,4,FALSE)) ->  | D31: =IF(A31="","",VLOOKUP(A31,[1]ItemConfig!$A:$C,3,FALSE)) ->  | E31: =IF(A31="","",VLOOKUP(B31,[2]语言配置表!$A:$E,5,FALSE)) ->  | F31: =IF(A31="","",VLOOKUP(C31,[2]语言配置表!$A:$E,5,FALSE)) -> 
A32: 2016 | B32: =IF(A32="","",VLOOKUP(A32,[1]ItemConfig!$A:$B,2,FALSE)) ->  | C32: =IF(A32="","",VLOOKUP(A32,[1]ItemConfig!$A:$D,4,FALSE)) ->  | D32: =IF(A32="","",VLOOKUP(A32,[1]ItemConfig!$A:$C,3,FALSE)) ->  | E32: =IF(A32="","",VLOOKUP(B32,[2]语言配置表!$A:$E,5,FALSE)) ->  | F32: =IF(A32="","",VLOOKUP(C32,[2]语言配置表!$A:$E,5,FALSE)) -> 
A33: 2017 | B33: =IF(A33="","",VLOOKUP(A33,[1]ItemConfig!$A:$B,2,FALSE)) ->  | C33: =IF(A33="","",VLOOKUP(A33,[1]ItemConfig!$A:$D,4,FALSE)) ->  | D33: =IF(A33="","",VLOOKUP(A33,[1]ItemConfig!$A:$C,3,FALSE)) ->  | E33: =IF(A33="","",VLOOKUP(B33,[2]语言配置表!$A:$E,5,FALSE)) ->  | F33: =IF(A33="","",VLOOKUP(C33,[2]语言配置表!$A:$E,5,FALSE)) -> 
A34: 2018 | B34: =IF(A34="","",VLOOKUP(A34,[1]ItemConfig!$A:$B,2,FALSE)) ->  | C34: =IF(A34="","",VLOOKUP(A34,[1]ItemConfig!$A:$D,4,FALSE)) ->  | D34: =IF(A34="","",VLOOKUP(A34,[1]ItemConfig!$A:$C,3,FALSE)) ->  | E34: =IF(A34="","",VLOOKUP(B34,[2]语言配置表!$A:$E,5,FALSE)) ->  | F34: =IF(A34="","",VLOOKUP(C34,[2]语言配置表!$A:$E,5,FALSE)) -> 
A35: 2019 | B35: =IF(A35="","",VLOOKUP(A35,[1]ItemConfig!$A:$B,2,FALSE)) ->  | C35: =IF(A35="","",VLOOKUP(A35,[1]ItemConfig!$A:$D,4,FALSE)) ->  | D35: =IF(A35="","",VLOOKUP(A35,[1]ItemConfig!$A:$C,3,FALSE)) ->  | E35: =IF(A35="","",VLOOKUP(B35,[2]语言配置表!$A:$E,5,FALSE)) ->  | F35: =IF(A35="","",VLOOKUP(C35,[2]语言配置表!$A:$E,5,FALSE)) -> 
A36: 2020 | B36: =IF(A36="","",VLOOKUP(A36,[1]ItemConfig!$A:$B,2,FALSE)) ->  | C36: =IF(A36="","",VLOOKUP(A36,[1]ItemConfig!$A:$D,4,FALSE)) ->  | D36: =IF(A36="","",VLOOKUP(A36,[1]ItemConfig!$A:$C,3,FALSE)) ->  | E36: =IF(A36="","",VLOOKUP(B36,[2]语言配置表!$A:$E,5,FALSE)) ->  | F36: =IF(A36="","",VLOOKUP(C36,[2]语言配置表!$A:$E,5,FALSE)) -> 
A37: 2021 | B37: =IF(A37="","",VLOOKUP(A37,[1]ItemConfig!$A:$B,2,FALSE)) ->  | C37: =IF(A37="","",VLOOKUP(A37,[1]ItemConfig!$A:$D,4,FALSE)) ->  | D37: =IF(A37="","",VLOOKUP(A37,[1]ItemConfig!$A:$C,3,FALSE)) ->  | E37: =IF(A37="","",VLOOKUP(B37,[2]语言配置表!$A:$E,5,FALSE)) ->  | F37: =IF(A37="","",VLOOKUP(C37,[2]语言配置表!$A:$E,5,FALSE)) -> 
A38: 2022 | B38: =IF(A38="","",VLOOKUP(A38,[1]ItemConfig!$A:$B,2,FALSE)) ->  | C38: =IF(A38="","",VLOOKUP(A38,[1]ItemConfig!$A:$D,4,FALSE)) ->  | D38: =IF(A38="","",VLOOKUP(A38,[1]ItemConfig!$A:$C,3,FALSE)) ->  | E38: =IF(A38="","",VLOOKUP(B38,[2]语言配置表!$A:$E,5,FALSE)) ->  | F38: =IF(A38="","",VLOOKUP(C38,[2]语言配置表!$A:$E,5,FALSE)) -> 
B39: =IF(A39="","",VLOOKUP(A39,[1]ItemConfig!$A:$B,2,FALSE)) ->  | C39: =IF(A39="","",VLOOKUP(A39,[1]ItemConfig!$A:$D,4,FALSE)) ->  | D39: =IF(A39="","",VLOOKUP(A39,[1]ItemConfig!$A:$C,3,FALSE)) ->  | E39: =IF(A39="","",VLOOKUP(B39,[2]语言配置表!$A:$E,5,FALSE)) ->  | F39: =IF(A39="","",VLOOKUP(C39,[2]语言配置表!$A:$E,5,FALSE)) -> 
A40: 2101 | B40: =IF(A40="","",VLOOKUP(A40,[1]ItemConfig!$A:$B,2,FALSE)) ->  | C40: =IF(A40="","",VLOOKUP(A40,[1]ItemConfig!$A:$D,4,FALSE)) ->  | D40: =IF(A40="","",VLOOKUP(A40,[1]ItemConfig!$A:$C,3,FALSE)) ->  | E40: =IF(A40="","",VLOOKUP(B40,[2]语言配置表!$A:$E,5,FALSE)) ->  | F40: =IF(A40="","",VLOOKUP(C40,[2]语言配置表!$A:$E,5,FALSE)) -> 
A41: 2102 | B41: =IF(A41="","",VLOOKUP(A41,[1]ItemConfig!$A:$B,2,FALSE)) ->  | C41: =IF(A41="","",VLOOKUP(A41,[1]ItemConfig!$A:$D,4,FALSE)) ->  | D41: =IF(A41="","",VLOOKUP(A41,[1]ItemConfig!$A:$C,3,FALSE)) ->  | E41: =IF(A41="","",VLOOKUP(B41,[2]语言配置表!$A:$E,5,FALSE)) ->  | F41: =IF(A41="","",VLOOKUP(C41,[2]语言配置表!$A:$E,5,FALSE)) -> 
A42: 2103 | B42: =IF(A42="","",VLOOKUP(A42,[1]ItemConfig!$A:$B,2,FALSE)) ->  | C42: =IF(A42="","",VLOOKUP(A42,[1]ItemConfig!$A:$D,4,FALSE)) ->  | D42: =IF(A42="","",VLOOKUP(A42,[1]ItemConfig!$A:$C,3,FALSE)) ->  | E42: =IF(A42="","",VLOOKUP(B42,[2]语言配置表!$A:$E,5,FALSE)) ->  | F42: =IF(A42="","",VLOOKUP(C42,[2]语言配置表!$A:$E,5,FALSE)) -> 
A43: 2104 | B43: =IF(A43="","",VLOOKUP(A43,[1]ItemConfig!$A:$B,2,FALSE)) ->  | C43: =IF(A43="","",VLOOKUP(A43,[1]ItemConfig!$A:$D,4,FALSE)) ->  | D43: =IF(A43="","",VLOOKUP(A43,[1]ItemConfig!$A:$C,3,FALSE)) ->  | E43: =IF(A43="","",VLOOKUP(B43,[2]语言配置表!$A:$E,5,FALSE)) ->  | F43: =IF(A43="","",VLOOKUP(C43,[2]语言配置表!$A:$E,5,FALSE)) -> 
A44: 2105 | B44: =IF(A44="","",VLOOKUP(A44,[1]ItemConfig!$A:$B,2,FALSE)) ->  | C44: =IF(A44="","",VLOOKUP(A44,[1]ItemConfig!$A:$D,4,FALSE)) ->  | D44: =IF(A44="","",VLOOKUP(A44,[1]ItemConfig!$A:$C,3,FALSE)) ->  | E44: =IF(A44="","",VLOOKUP(B44,[2]语言配置表!$A:$E,5,FALSE)) ->  | F44: =IF(A44="","",VLOOKUP(C44,[2]语言配置表!$A:$E,5,FALSE)) -> 
A45: 2106 | B45: =IF(A45="","",VLOOKUP(A45,[1]ItemConfig!$A:$B,2,FALSE)) ->  | C45: =IF(A45="","",VLOOKUP(A45,[1]ItemConfig!$A:$D,4,FALSE)) ->  | D45: =IF(A45="","",VLOOKUP(A45,[1]ItemConfig!$A:$C,3,FALSE)) ->  | E45: =IF(A45="","",VLOOKUP(B45,[2]语言配置表!$A:$E,5,FALSE)) ->  | F45: =IF(A45="","",VLOOKUP(C45,[2]语言配置表!$A:$E,5,FALSE)) -> 
A46: 2107 | B46: =IF(A46="","",VLOOKUP(A46,[1]ItemConfig!$A:$B,2,FALSE)) ->  | C46: =IF(A46="","",VLOOKUP(A46,[1]ItemConfig!$A:$D,4,FALSE)) ->  | D46: =IF(A46="","",VLOOKUP(A46,[1]ItemConfig!$A:$C,3,FALSE)) ->  | E46: =IF(A46="","",VLOOKUP(B46,[2]语言配置表!$A:$E,5,FALSE)) ->  | F46: =IF(A46="","",VLOOKUP(C46,[2]语言配置表!$A:$E,5,FALSE)) -> 
A47: 2108 | B47: =IF(A47="","",VLOOKUP(A47,[1]ItemConfig!$A:$B,2,FALSE)) ->  | C47: =IF(A47="","",VLOOKUP(A47,[1]ItemConfig!$A:$D,4,FALSE)) ->  | D47: =IF(A47="","",VLOOKUP(A47,[1]ItemConfig!$A:$C,3,FALSE)) ->  | E47: =IF(A47="","",VLOOKUP(B47,[2]语言配置表!$A:$E,5,FALSE)) ->  | F47: =IF(A47="","",VLOOKUP(C47,[2]语言配置表!$A:$E,5,FALSE)) -> 
A48: 2109 | B48: =IF(A48="","",VLOOKUP(A48,[1]ItemConfig!$A:$B,2,FALSE)) ->  | C48: =IF(A48="","",VLOOKUP(A48,[1]ItemConfig!$A:$D,4,FALSE)) ->  | D48: =IF(A48="","",VLOOKUP(A48,[1]ItemConfig!$A:$C,3,FALSE)) ->  | E48: =IF(A48="","",VLOOKUP(B48,[2]语言配置表!$A:$E,5,FALSE)) ->  | F48: =IF(A48="","",VLOOKUP(C48,[2]语言配置表!$A:$E,5,FALSE)) -> 
A49: 2110 | B49: =IF(A49="","",VLOOKUP(A49,[1]ItemConfig!$A:$B,2,FALSE)) ->  | C49: =IF(A49="","",VLOOKUP(A49,[1]ItemConfig!$A:$D,4,FALSE)) ->  | D49: =IF(A49="","",VLOOKUP(A49,[1]ItemConfig!$A:$C,3,FALSE)) ->  | E49: =IF(A49="","",VLOOKUP(B49,[2]语言配置表!$A:$E,5,FALSE)) ->  | F49: =IF(A49="","",VLOOKUP(C49,[2]语言配置表!$A:$E,5,FALSE)) -> 
A50: 2111 | B50: =IF(A50="","",VLOOKUP(A50,[1]ItemConfig!$A:$B,2,FALSE)) ->  | C50: =IF(A50="","",VLOOKUP(A50,[1]ItemConfig!$A:$D,4,FALSE)) ->  | D50: =IF(A50="","",VLOOKUP(A50,[1]ItemConfig!$A:$C,3,FALSE)) ->  | E50: =IF(A50="","",VLOOKUP(B50,[2]语言配置表!$A:$E,5,FALSE)) ->  | F50: =IF(A50="","",VLOOKUP(C50,[2]语言配置表!$A:$E,5,FALSE)) -> 
A51: 2112 | B51: =IF(A51="","",VLOOKUP(A51,[1]ItemConfig!$A:$B,2,FALSE)) ->  | C51: =IF(A51="","",VLOOKUP(A51,[1]ItemConfig!$A:$D,4,FALSE)) ->  | D51: =IF(A51="","",VLOOKUP(A51,[1]ItemConfig!$A:$C,3,FALSE)) ->  | E51: =IF(A51="","",VLOOKUP(B51,[2]语言配置表!$A:$E,5,FALSE)) ->  | F51: =IF(A51="","",VLOOKUP(C51,[2]语言配置表!$A:$E,5,FALSE)) -> 
A52: 2113 | B52: =IF(A52="","",VLOOKUP(A52,[1]ItemConfig!$A:$B,2,FALSE)) ->  | C52: =IF(A52="","",VLOOKUP(A52,[1]ItemConfig!$A:$D,4,FALSE)) ->  | D52: =IF(A52="","",VLOOKUP(A52,[1]ItemConfig!$A:$C,3,FALSE)) ->  | E52: =IF(A52="","",VLOOKUP(B52,[2]语言配置表!$A:$E,5,FALSE)) ->  | F52: =IF(A52="","",VLOOKUP(C52,[2]语言配置表!$A:$E,5,FALSE)) -> 
A53: 2114 | B53: =IF(A53="","",VLOOKUP(A53,[1]ItemConfig!$A:$B,2,FALSE)) ->  | C53: =IF(A53="","",VLOOKUP(A53,[1]ItemConfig!$A:$D,4,FALSE)) ->  | D53: =IF(A53="","",VLOOKUP(A53,[1]ItemConfig!$A:$C,3,FALSE)) ->  | E53: =IF(A53="","",VLOOKUP(B53,[2]语言配置表!$A:$E,5,FALSE)) ->  | F53: =IF(A53="","",VLOOKUP(C53,[2]语言配置表!$A:$E,5,FALSE)) -> 
A54: 2115 | B54: =IF(A54="","",VLOOKUP(A54,[1]ItemConfig!$A:$B,2,FALSE)) ->  | C54: =IF(A54="","",VLOOKUP(A54,[1]ItemConfig!$A:$D,4,FALSE)) ->  | D54: =IF(A54="","",VLOOKUP(A54,[1]ItemConfig!$A:$C,3,FALSE)) ->  | E54: =IF(A54="","",VLOOKUP(B54,[2]语言配置表!$A:$E,5,FALSE)) ->  | F54: =IF(A54="","",VLOOKUP(C54,[2]语言配置表!$A:$E,5,FALSE)) -> 
A55: 2116 | B55: =IF(A55="","",VLOOKUP(A55,[1]ItemConfig!$A:$B,2,FALSE)) ->  | C55: =IF(A55="","",VLOOKUP(A55,[1]ItemConfig!$A:$D,4,FALSE)) ->  | D55: =IF(A55="","",VLOOKUP(A55,[1]ItemConfig!$A:$C,3,FALSE)) ->  | E55: =IF(A55="","",VLOOKUP(B55,[2]语言配置表!$A:$E,5,FALSE)) ->  | F55: =IF(A55="","",VLOOKUP(C55,[2]语言配置表!$A:$E,5,FALSE)) -> 
A56: 2117 | B56: =IF(A56="","",VLOOKUP(A56,[1]ItemConfig!$A:$B,2,FALSE)) ->  | C56: =IF(A56="","",VLOOKUP(A56,[1]ItemConfig!$A:$D,4,FALSE)) ->  | D56: =IF(A56="","",VLOOKUP(A56,[1]ItemConfig!$A:$C,3,FALSE)) ->  | E56: =IF(A56="","",VLOOKUP(B56,[2]语言配置表!$A:$E,5,FALSE)) ->  | F56: =IF(A56="","",VLOOKUP(C56,[2]语言配置表!$A:$E,5,FALSE)) -> 
A57: 2118 | B57: =IF(A57="","",VLOOKUP(A57,[1]ItemConfig!$A:$B,2,FALSE)) ->  | C57: =IF(A57="","",VLOOKUP(A57,[1]ItemConfig!$A:$D,4,FALSE)) ->  | D57: =IF(A57="","",VLOOKUP(A57,[1]ItemConfig!$A:$C,3,FALSE)) ->  | E57: =IF(A57="","",VLOOKUP(B57,[2]语言配置表!$A:$E,5,FALSE)) ->  | F57: =IF(A57="","",VLOOKUP(C57,[2]语言配置表!$A:$E,5,FALSE)) -> 
B58: =IF(A58="","",VLOOKUP(A58,[1]ItemConfig!$A:$B,2,FALSE)) ->  | C58: =IF(A58="","",VLOOKUP(A58,[1]ItemConfig!$A:$D,4,FALSE)) ->  | D58: =IF(A58="","",VLOOKUP(A58,[1]ItemConfig!$A:$C,3,FALSE)) ->  | E58: =IF(A58="","",VLOOKUP(B58,[2]语言配置表!$A:$E,5,FALSE)) ->  | F58: =IF(A58="","",VLOOKUP(C58,[2]语言配置表!$A:$E,5,FALSE)) -> 
A59: 10001 | B59: =IF(A59="","",VLOOKUP(A59,[1]ItemConfig!$A:$B,2,FALSE)) ->  | C59: =IF(A59="","",VLOOKUP(A59,[1]ItemConfig!$A:$D,4,FALSE)) ->  | D59: =IF(A59="","",VLOOKUP(A59,[1]ItemConfig!$A:$C,3,FALSE)) ->  | E59: =IF(A59="","",VLOOKUP(B59,[2]语言配置表!$A:$E,5,FALSE)) ->  | F59: =IF(A59="","",VLOOKUP(C59,[2]语言配置表!$A:$E,5,FALSE)) -> 
A60: 10002 | B60: =IF(A60="","",VLOOKUP(A60,[1]ItemConfig!$A:$B,2,FALSE)) ->  | C60: =IF(A60="","",VLOOKUP(A60,[1]ItemConfig!$A:$D,4,FALSE)) ->  | D60: =IF(A60="","",VLOOKUP(A60,[1]ItemConfig!$A:$C,3,FALSE)) ->  | E60: =IF(A60="","",VLOOKUP(B60,[2]语言配置表!$A:$E,5,FALSE)) ->  | F60: =IF(A60="","",VLOOKUP(C60,[2]语言配置表!$A:$E,5,FALSE)) -> 
A61: 10003 | B61: =IF(A61="","",VLOOKUP(A61,[1]ItemConfig!$A:$B,2,FALSE)) ->  | C61: =IF(A61="","",VLOOKUP(A61,[1]ItemConfig!$A:$D,4,FALSE)) ->  | D61: =IF(A61="","",VLOOKUP(A61,[1]ItemConfig!$A:$C,3,FALSE)) ->  | E61: =IF(A61="","",VLOOKUP(B61,[2]语言配置表!$A:$E,5,FALSE)) ->  | F61: =IF(A61="","",VLOOKUP(C61,[2]语言配置表!$A:$E,5,FALSE)) -> 
A62: 10004 | B62: =IF(A62="","",VLOOKUP(A62,[1]ItemConfig!$A:$B,2,FALSE)) ->  | C62: =IF(A62="","",VLOOKUP(A62,[1]ItemConfig!$A:$D,4,FALSE)) ->  | D62: =IF(A62="","",VLOOKUP(A62,[1]ItemConfig!$A:$C,3,FALSE)) ->  | E62: =IF(A62="","",VLOOKUP(B62,[2]语言配置表!$A:$E,5,FALSE)) ->  | F62: =IF(A62="","",VLOOKUP(C62,[2]语言配置表!$A:$E,5,FALSE)) -> 
A63: 30000 | B63: =IF(A63="","",VLOOKUP(A63,[1]ItemConfig!$A:$B,2,FALSE)) ->  | C63: =IF(A63="","",VLOOKUP(A63,[1]ItemConfig!$A:$D,4,FALSE)) ->  | D63: =IF(A63="","",VLOOKUP(A63,[1]ItemConfig!$A:$C,3,FALSE)) ->  | E63: =IF(A63="","",VLOOKUP(B63,[2]语言配置表!$A:$E,5,FALSE)) ->  | F63: =IF(A63="","",VLOOKUP(C63,[2]语言配置表!$A:$E,5,FALSE)) -> 
A64: 30001 | B64: =IF(A64="","",VLOOKUP(A64,[1]ItemConfig!$A:$B,2,FALSE)) ->  | C64: =IF(A64="","",VLOOKUP(A64,[1]ItemConfig!$A:$D,4,FALSE)) ->  | D64: =IF(A64="","",VLOOKUP(A64,[1]ItemConfig!$A:$C,3,FALSE)) ->  | E64: =IF(A64="","",VLOOKUP(B64,[2]语言配置表!$A:$E,5,FALSE)) ->  | F64: =IF(A64="","",VLOOKUP(C64,[2]语言配置表!$A:$E,5,FALSE)) -> 
B65: =IF(A65="","",VLOOKUP(A65,[1]ItemConfig!$A:$B,2,FALSE)) ->  | C65: =IF(A65="","",VLOOKUP(A65,[1]ItemConfig!$A:$D,4,FALSE)) ->  | D65: =IF(A65="","",VLOOKUP(A65,[1]ItemConfig!$A:$C,3,FALSE)) ->  | E65: =IF(A65="","",VLOOKUP(B65,[2]语言配置表!$A:$E,5,FALSE)) ->  | F65: =IF(A65="","",VLOOKUP(C65,[2]语言配置表!$A:$E,5,FALSE)) -> 
B66: =IF(A66="","",VLOOKUP(A66,[1]ItemConfig!$A:$B,2,FALSE)) ->  | C66: =IF(A66="","",VLOOKUP(A66,[1]ItemConfig!$A:$D,4,FALSE)) ->  | D66: =IF(A66="","",VLOOKUP(A66,[1]ItemConfig!$A:$C,3,FALSE)) ->  | E66: =IF(A66="","",VLOOKUP(B66,[2]语言配置表!$A:$E,5,FALSE)) ->  | F66: =IF(A66="","",VLOOKUP(C66,[2]语言配置表!$A:$E,5,FALSE)) -> 
B67: =IF(A67="","",VLOOKUP(A67,[1]ItemConfig!$A:$B,2,FALSE)) ->  | C67: =IF(A67="","",VLOOKUP(A67,[1]ItemConfig!$A:$D,4,FALSE)) ->  | D67: =IF(A67="","",VLOOKUP(A67,[1]ItemConfig!$A:$C,3,FALSE)) ->  | E67: =IF(A67="","",VLOOKUP(B67,[2]语言配置表!$A:$E,5,FALSE)) ->  | F67: =IF(A67="","",VLOOKUP(C67,[2]语言配置表!$A:$E,5,FALSE)) -> 
A68: 3104 | B68: =IF(A68="","",VLOOKUP(A68,[1]ItemConfig!$A:$B,2,FALSE)) ->  | C68: =IF(A68="","",VLOOKUP(A68,[1]ItemConfig!$A:$D,4,FALSE)) ->  | D68: =IF(A68="","",VLOOKUP(A68,[1]ItemConfig!$A:$C,3,FALSE)) ->  | E68: =IF(A68="","",VLOOKUP(B68,[2]语言配置表!$A:$E,5,FALSE)) ->  | F68: =IF(A68="","",VLOOKUP(C68,[2]语言配置表!$A:$E,5,FALSE)) -> 
A69: 3105 | B69: =IF(A69="","",VLOOKUP(A69,[1]ItemConfig!$A:$B,2,FALSE)) ->  | C69: =IF(A69="","",VLOOKUP(A69,[1]ItemConfig!$A:$D,4,FALSE)) ->  | D69: =IF(A69="","",VLOOKUP(A69,[1]ItemConfig!$A:$C,3,FALSE)) ->  | E69: =IF(A69="","",VLOOKUP(B69,[2]语言配置表!$A:$E,5,FALSE)) ->  | F69: =IF(A69="","",VLOOKUP(C69,[2]语言配置表!$A:$E,5,FALSE)) -> 
A70: 3201 | B70: =IF(A70="","",VLOOKUP(A70,[1]ItemConfig!$A:$B,2,FALSE)) ->  | C70: =IF(A70="","",VLOOKUP(A70,[1]ItemConfig!$A:$D,4,FALSE)) ->  | D70: =IF(A70="","",VLOOKUP(A70,[1]ItemConfig!$A:$C,3,FALSE)) ->  | E70: =IF(A70="","",VLOOKUP(B70,[2]语言配置表!$A:$E,5,FALSE)) ->  | F70: =IF(A70="","",VLOOKUP(C70,[2]语言配置表!$A:$E,5,FALSE)) -> 
B71: =IF(A71="","",VLOOKUP(A71,[1]ItemConfig!$A:$B,2,FALSE)) ->  | C71: =IF(A71="","",VLOOKUP(A71,[1]ItemConfig!$A:$D,4,FALSE)) ->  | D71: =IF(A71="","",VLOOKUP(A71,[1]ItemConfig!$A:$C,3,FALSE)) ->  | E71: =IF(A71="","",VLOOKUP(B71,[2]语言配置表!$A:$E,5,FALSE)) ->  | F71: =IF(A71="","",VLOOKUP(C71,[2]语言配置表!$A:$E,5,FALSE)) -> 
A72: 3205 | B72: =IF(A72="","",VLOOKUP(A72,[1]ItemConfig!$A:$B,2,FALSE)) ->  | C72: =IF(A72="","",VLOOKUP(A72,[1]ItemConfig!$A:$D,4,FALSE)) ->  | D72: =IF(A72="","",VLOOKUP(A72,[1]ItemConfig!$A:$C,3,FALSE)) ->  | E72: =IF(A72="","",VLOOKUP(B72,[2]语言配置表!$A:$E,5,FALSE)) ->  | F72: =IF(A72="","",VLOOKUP(C72,[2]语言配置表!$A:$E,5,FALSE)) -> 
A73: 3206 | B73: =IF(A73="","",VLOOKUP(A73,[1]ItemConfig!$A:$B,2,FALSE)) ->  | C73: =IF(A73="","",VLOOKUP(A73,[1]ItemConfig!$A:$D,4,FALSE)) ->  | D73: =IF(A73="","",VLOOKUP(A73,[1]ItemConfig!$A:$C,3,FALSE)) ->  | E73: =IF(A73="","",VLOOKUP(B73,[2]语言配置表!$A:$E,5,FALSE)) ->  | F73: =IF(A73="","",VLOOKUP(C73,[2]语言配置表!$A:$E,5,FALSE)) -> 
A74: 3301 | B74: =IF(A74="","",VLOOKUP(A74,[1]ItemConfig!$A:$B,2,FALSE)) ->  | C74: =IF(A74="","",VLOOKUP(A74,[1]ItemConfig!$A:$D,4,FALSE)) ->  | D74: =IF(A74="","",VLOOKUP(A74,[1]ItemConfig!$A:$C,3,FALSE)) ->  | E74: =IF(A74="","",VLOOKUP(B74,[2]语言配置表!$A:$E,5,FALSE)) ->  | F74: =IF(A74="","",VLOOKUP(C74,[2]语言配置表!$A:$E,5,FALSE)) -> 
A75: 3304 | B75: =IF(A75="","",VLOOKUP(A75,[1]ItemConfig!$A:$B,2,FALSE)) ->  | C75: =IF(A75="","",VLOOKUP(A75,[1]ItemConfig!$A:$D,4,FALSE)) ->  | D75: =IF(A75="","",VLOOKUP(A75,[1]ItemConfig!$A:$C,3,FALSE)) ->  | E75: =IF(A75="","",VLOOKUP(B75,[2]语言配置表!$A:$E,5,FALSE)) ->  | F75: =IF(A75="","",VLOOKUP(C75,[2]语言配置表!$A:$E,5,FALSE)) -> 
A76: 3401 | B76: =IF(A76="","",VLOOKUP(A76,[1]ItemConfig!$A:$B,2,FALSE)) ->  | C76: =IF(A76="","",VLOOKUP(A76,[1]ItemConfig!$A:$D,4,FALSE)) ->  | D76: =IF(A76="","",VLOOKUP(A76,[1]ItemConfig!$A:$C,3,FALSE)) ->  | E76: =IF(A76="","",VLOOKUP(B76,[2]语言配置表!$A:$E,5,FALSE)) ->  | F76: =IF(A76="","",VLOOKUP(C76,[2]语言配置表!$A:$E,5,FALSE)) -> 
B77: =IF(A77="","",VLOOKUP(A77,[1]ItemConfig!$A:$B,2,FALSE)) ->  | C77: =IF(A77="","",VLOOKUP(A77,[1]ItemConfig!$A:$D,4,FALSE)) ->  | D77: =IF(A77="","",VLOOKUP(A77,[1]ItemConfig!$A:$C,3,FALSE)) ->  | E77: =IF(A77="","",VLOOKUP(B77,[2]语言配置表!$A:$E,5,FALSE)) ->  | F77: =IF(A77="","",VLOOKUP(C77,[2]语言配置表!$A:$E,5,FALSE)) -> 
A78: 3403 | B78: =IF(A78="","",VLOOKUP(A78,[1]ItemConfig!$A:$B,2,FALSE)) ->  | C78: =IF(A78="","",VLOOKUP(A78,[1]ItemConfig!$A:$D,4,FALSE)) ->  | D78: =IF(A78="","",VLOOKUP(A78,[1]ItemConfig!$A:$C,3,FALSE)) ->  | E78: =IF(A78="","",VLOOKUP(B78,[2]语言配置表!$A:$E,5,FALSE)) ->  | F78: =IF(A78="","",VLOOKUP(C78,[2]语言配置表!$A:$E,5,FALSE)) -> 
A79: 3501 | B79: =IF(A79="","",VLOOKUP(A79,[1]ItemConfig!$A:$B,2,FALSE)) ->  | C79: =IF(A79="","",VLOOKUP(A79,[1]ItemConfig!$A:$D,4,FALSE)) ->  | D79: =IF(A79="","",VLOOKUP(A79,[1]ItemConfig!$A:$C,3,FALSE)) ->  | E79: =IF(A79="","",VLOOKUP(B79,[2]语言配置表!$A:$E,5,FALSE)) ->  | F79: =IF(A79="","",VLOOKUP(C79,[2]语言配置表!$A:$E,5,FALSE)) -> 
B80: =IF(A80="","",VLOOKUP(A80,[1]ItemConfig!$A:$B,2,FALSE)) ->  | C80: =IF(A80="","",VLOOKUP(A80,[1]ItemConfig!$A:$D,4,FALSE)) ->  | D80: =IF(A80="","",VLOOKUP(A80,[1]ItemConfig!$A:$C,3,FALSE)) ->  | E80: =IF(A80="","",VLOOKUP(B80,[2]语言配置表!$A:$E,5,FALSE)) ->  | F80: =IF(A80="","",VLOOKUP(C80,[2]语言配置表!$A:$E,5,FALSE)) -> 
A81: 3601 | B81: =IF(A81="","",VLOOKUP(A81,[1]ItemConfig!$A:$B,2,FALSE)) ->  | C81: =IF(A81="","",VLOOKUP(A81,[1]ItemConfig!$A:$D,4,FALSE)) ->  | D81: =IF(A81="","",VLOOKUP(A81,[1]ItemConfig!$A:$C,3,FALSE)) ->  | E81: =IF(A81="","",VLOOKUP(B81,[2]语言配置表!$A:$E,5,FALSE)) ->  | F81: =IF(A81="","",VLOOKUP(C81,[2]语言配置表!$A:$E,5,FALSE)) -> 
A82: 3602 | B82: =IF(A82="","",VLOOKUP(A82,[1]ItemConfig!$A:$B,2,FALSE)) ->  | C82: =IF(A82="","",VLOOKUP(A82,[1]ItemConfig!$A:$D,4,FALSE)) ->  | D82: =IF(A82="","",VLOOKUP(A82,[1]ItemConfig!$A:$C,3,FALSE)) ->  | E82: =IF(A82="","",VLOOKUP(B82,[2]语言配置表!$A:$E,5,FALSE)) ->  | F82: =IF(A82="","",VLOOKUP(C82,[2]语言配置表!$A:$E,5,FALSE)) -> 
A83: 3603 | B83: =IF(A83="","",VLOOKUP(A83,[1]ItemConfig!$A:$B,2,FALSE)) ->  | C83: =IF(A83="","",VLOOKUP(A83,[1]ItemConfig!$A:$D,4,FALSE)) ->  | D83: =IF(A83="","",VLOOKUP(A83,[1]ItemConfig!$A:$C,3,FALSE)) ->  | E83: =IF(A83="","",VLOOKUP(B83,[2]语言配置表!$A:$E,5,FALSE)) ->  | F83: =IF(A83="","",VLOOKUP(C83,[2]语言配置表!$A:$E,5,FALSE)) -> 
B84: =IF(A84="","",VLOOKUP(A84,[1]ItemConfig!$A:$B,2,FALSE)) ->  | C84: =IF(A84="","",VLOOKUP(A84,[1]ItemConfig!$A:$D,4,FALSE)) ->  | D84: =IF(A84="","",VLOOKUP(A84,[1]ItemConfig!$A:$C,3,FALSE)) ->  | E84: =IF(A84="","",VLOOKUP(B84,[2]语言配置表!$A:$E,5,FALSE)) ->  | F84: =IF(A84="","",VLOOKUP(C84,[2]语言配置表!$A:$E,5,FALSE)) -> 
A85: 3703 | B85: =IF(A85="","",VLOOKUP(A85,[1]ItemConfig!$A:$B,2,FALSE)) ->  | C85: =IF(A85="","",VLOOKUP(A85,[1]ItemConfig!$A:$D,4,FALSE)) ->  | D85: =IF(A85="","",VLOOKUP(A85,[1]ItemConfig!$A:$C,3,FALSE)) ->  | E85: =IF(A85="","",VLOOKUP(B85,[2]语言配置表!$A:$E,5,FALSE)) ->  | F85: =IF(A85="","",VLOOKUP(C85,[2]语言配置表!$A:$E,5,FALSE)) -> 
B86: =IF(A86="","",VLOOKUP(A86,[1]ItemConfig!$A:$B,2,FALSE)) ->  | C86: =IF(A86="","",VLOOKUP(A86,[1]ItemConfig!$A:$D,4,FALSE)) ->  | D86: =IF(A86="","",VLOOKUP(A86,[1]ItemConfig!$A:$C,3,FALSE)) ->  | E86: =IF(A86="","",VLOOKUP(B86,[2]语言配置表!$A:$E,5,FALSE)) ->  | F86: =IF(A86="","",VLOOKUP(C86,[2]语言配置表!$A:$E,5,FALSE)) -> 
B87: =IF(A87="","",VLOOKUP(A87,[1]ItemConfig!$A:$B,2,FALSE)) ->  | C87: =IF(A87="","",VLOOKUP(A87,[1]ItemConfig!$A:$D,4,FALSE)) ->  | D87: =IF(A87="","",VLOOKUP(A87,[1]ItemConfig!$A:$C,3,FALSE)) ->  | E87: =IF(A87="","",VLOOKUP(B87,[2]语言配置表!$A:$E,5,FALSE)) ->  | F87: =IF(A87="","",VLOOKUP(C87,[2]语言配置表!$A:$E,5,FALSE)) -> 
B88: =IF(A88="","",VLOOKUP(A88,[1]ItemConfig!$A:$B,2,FALSE)) ->  | C88: =IF(A88="","",VLOOKUP(A88,[1]ItemConfig!$A:$D,4,FALSE)) ->  | D88: =IF(A88="","",VLOOKUP(A88,[1]ItemConfig!$A:$C,3,FALSE)) ->  | E88: =IF(A88="","",VLOOKUP(B88,[2]语言配置表!$A:$E,5,FALSE)) ->  | F88: =IF(A88="","",VLOOKUP(C88,[2]语言配置表!$A:$E,5,FALSE)) -> 
A89: 7104 | B89: =IF(A89="","",VLOOKUP(A89,[1]ItemConfig!$A:$B,2,FALSE)) ->  | C89: =IF(A89="","",VLOOKUP(A89,[1]ItemConfig!$A:$D,4,FALSE)) ->  | D89: =IF(A89="","",VLOOKUP(A89,[1]ItemConfig!$A:$C,3,FALSE)) ->  | E89: =IF(A89="","",VLOOKUP(B89,[2]语言配置表!$A:$E,5,FALSE)) ->  | F89: =IF(A89="","",VLOOKUP(C89,[2]语言配置表!$A:$E,5,FALSE)) -> 
A90: 7105 | B90: =IF(A90="","",VLOOKUP(A90,[1]ItemConfig!$A:$B,2,FALSE)) ->  | C90: =IF(A90="","",VLOOKUP(A90,[1]ItemConfig!$A:$D,4,FALSE)) ->  | D90: =IF(A90="","",VLOOKUP(A90,[1]ItemConfig!$A:$C,3,FALSE)) ->  | E90: =IF(A90="","",VLOOKUP(B90,[2]语言配置表!$A:$E,5,FALSE)) ->  | F90: =IF(A90="","",VLOOKUP(C90,[2]语言配置表!$A:$E,5,FALSE)) -> 
A91: 7201 | B91: =IF(A91="","",VLOOKUP(A91,[1]ItemConfig!$A:$B,2,FALSE)) ->  | C91: =IF(A91="","",VLOOKUP(A91,[1]ItemConfig!$A:$D,4,FALSE)) ->  | D91: =IF(A91="","",VLOOKUP(A91,[1]ItemConfig!$A:$C,3,FALSE)) ->  | E91: =IF(A91="","",VLOOKUP(B91,[2]语言配置表!$A:$E,5,FALSE)) ->  | F91: =IF(A91="","",VLOOKUP(C91,[2]语言配置表!$A:$E,5,FALSE)) -> 
B92: =IF(A92="","",VLOOKUP(A92,[1]ItemConfig!$A:$B,2,FALSE)) ->  | C92: =IF(A92="","",VLOOKUP(A92,[1]ItemConfig!$A:$D,4,FALSE)) ->  | D92: =IF(A92="","",VLOOKUP(A92,[1]ItemConfig!$A:$C,3,FALSE)) ->  | E92: =IF(A92="","",VLOOKUP(B92,[2]语言配置表!$A:$E,5,FALSE)) ->  | F92: =IF(A92="","",VLOOKUP(C92,[2]语言配置表!$A:$E,5,FALSE)) -> 
A93: 7205 | B93: =IF(A93="","",VLOOKUP(A93,[1]ItemConfig!$A:$B,2,FALSE)) ->  | C93: =IF(A93="","",VLOOKUP(A93,[1]ItemConfig!$A:$D,4,FALSE)) ->  | D93: =IF(A93="","",VLOOKUP(A93,[1]ItemConfig!$A:$C,3,FALSE)) ->  | E93: =IF(A93="","",VLOOKUP(B93,[2]语言配置表!$A:$E,5,FALSE)) ->  | F93: =IF(A93="","",VLOOKUP(C93,[2]语言配置表!$A:$E,5,FALSE)) -> 
A94: 7206 | B94: =IF(A94="","",VLOOKUP(A94,[1]ItemConfig!$A:$B,2,FALSE)) ->  | C94: =IF(A94="","",VLOOKUP(A94,[1]ItemConfig!$A:$D,4,FALSE)) ->  | D94: =IF(A94="","",VLOOKUP(A94,[1]ItemConfig!$A:$C,3,FALSE)) ->  | E94: =IF(A94="","",VLOOKUP(B94,[2]语言配置表!$A:$E,5,FALSE)) ->  | F94: =IF(A94="","",VLOOKUP(C94,[2]语言配置表!$A:$E,5,FALSE)) -> 
A95: 7301 | B95: =IF(A95="","",VLOOKUP(A95,[1]ItemConfig!$A:$B,2,FALSE)) ->  | C95: =IF(A95="","",VLOOKUP(A95,[1]ItemConfig!$A:$D,4,FALSE)) ->  | D95: =IF(A95="","",VLOOKUP(A95,[1]ItemConfig!$A:$C,3,FALSE)) ->  | E95: =IF(A95="","",VLOOKUP(B95,[2]语言配置表!$A:$E,5,FALSE)) ->  | F95: =IF(A95="","",VLOOKUP(C95,[2]语言配置表!$A:$E,5,FALSE)) -> 
A96: 7304 | B96: =IF(A96="","",VLOOKUP(A96,[1]ItemConfig!$A:$B,2,FALSE)) ->  | C96: =IF(A96="","",VLOOKUP(A96,[1]ItemConfig!$A:$D,4,FALSE)) ->  | D96: =IF(A96="","",VLOOKUP(A96,[1]ItemConfig!$A:$C,3,FALSE)) ->  | E96: =IF(A96="","",VLOOKUP(B96,[2]语言配置表!$A:$E,5,FALSE)) ->  | F96: =IF(A96="","",VLOOKUP(C96,[2]语言配置表!$A:$E,5,FALSE)) -> 
A97: 7401 | B97: =IF(A97="","",VLOOKUP(A97,[1]ItemConfig!$A:$B,2,FALSE)) ->  | C97: =IF(A97="","",VLOOKUP(A97,[1]ItemConfig!$A:$D,4,FALSE)) ->  | D97: =IF(A97="","",VLOOKUP(A97,[1]ItemConfig!$A:$C,3,FALSE)) ->  | E97: =IF(A97="","",VLOOKUP(B97,[2]语言配置表!$A:$E,5,FALSE)) ->  | F97: =IF(A97="","",VLOOKUP(C97,[2]语言配置表!$A:$E,5,FALSE)) -> 
B98: =IF(A98="","",VLOOKUP(A98,[1]ItemConfig!$A:$B,2,FALSE)) ->  | C98: =IF(A98="","",VLOOKUP(A98,[1]ItemConfig!$A:$D,4,FALSE)) ->  | D98: =IF(A98="","",VLOOKUP(A98,[1]ItemConfig!$A:$C,3,FALSE)) ->  | E98: =IF(A98="","",VLOOKUP(B98,[2]语言配置表!$A:$E,5,FALSE)) ->  | F98: =IF(A98="","",VLOOKUP(C98,[2]语言配置表!$A:$E,5,FALSE)) -> 
A99: 7403 | B99: =IF(A99="","",VLOOKUP(A99,[1]ItemConfig!$A:$B,2,FALSE)) ->  | C99: =IF(A99="","",VLOOKUP(A99,[1]ItemConfig!$A:$D,4,FALSE)) ->  | D99: =IF(A99="","",VLOOKUP(A99,[1]ItemConfig!$A:$C,3,FALSE)) ->  | E99: =IF(A99="","",VLOOKUP(B99,[2]语言配置表!$A:$E,5,FALSE)) ->  | F99: =IF(A99="","",VLOOKUP(C99,[2]语言配置表!$A:$E,5,FALSE)) -> 
A100: 7501 | B100: =IF(A100="","",VLOOKUP(A100,[1]ItemConfig!$A:$B,2,FALSE)) ->  | C100: =IF(A100="","",VLOOKUP(A100,[1]ItemConfig!$A:$D,4,FALSE)) ->  | D100: =IF(A100="","",VLOOKUP(A100,[1]ItemConfig!$A:$C,3,FALSE)) ->  | E100: =IF(A100="","",VLOOKUP(B100,[2]语言配置表!$A:$E,5,FALSE)) ->  | F100: =IF(A100="","",VLOOKUP(C100,[2]语言配置表!$A:$E,5,FALSE)) -> 
B101: =IF(A101="","",VLOOKUP(A101,[1]ItemConfig!$A:$B,2,FALSE)) ->  | C101: =IF(A101="","",VLOOKUP(A101,[1]ItemConfig!$A:$D,4,FALSE)) ->  | D101: =IF(A101="","",VLOOKUP(A101,[1]ItemConfig!$A:$C,3,FALSE)) ->  | E101: =IF(A101="","",VLOOKUP(B101,[2]语言配置表!$A:$E,5,FALSE)) ->  | F101: =IF(A101="","",VLOOKUP(C101,[2]语言配置表!$A:$E,5,FALSE)) -> 
A102: 7601 | B102: =IF(A102="","",VLOOKUP(A102,[1]ItemConfig!$A:$B,2,FALSE)) ->  | C102: =IF(A102="","",VLOOKUP(A102,[1]ItemConfig!$A:$D,4,FALSE)) ->  | D102: =IF(A102="","",VLOOKUP(A102,[1]ItemConfig!$A:$C,3,FALSE)) ->  | E102: =IF(A102="","",VLOOKUP(B102,[2]语言配置表!$A:$E,5,FALSE)) ->  | F102: =IF(A102="","",VLOOKUP(C102,[2]语言配置表!$A:$E,5,FALSE)) -> 
A103: 7602 | B103: =IF(A103="","",VLOOKUP(A103,[1]ItemConfig!$A:$B,2,FALSE)) ->  | C103: =IF(A103="","",VLOOKUP(A103,[1]ItemConfig!$A:$D,4,FALSE)) ->  | D103: =IF(A103="","",VLOOKUP(A103,[1]ItemConfig!$A:$C,3,FALSE)) ->  | E103: =IF(A103="","",VLOOKUP(B103,[2]语言配置表!$A:$E,5,FALSE)) ->  | F103: =IF(A103="","",VLOOKUP(C103,[2]语言配置表!$A:$E,5,FALSE)) -> 
A104: 7603 | B104: =IF(A104="","",VLOOKUP(A104,[1]ItemConfig!$A:$B,2,FALSE)) ->  | C104: =IF(A104="","",VLOOKUP(A104,[1]ItemConfig!$A:$D,4,FALSE)) ->  | D104: =IF(A104="","",VLOOKUP(A104,[1]ItemConfig!$A:$C,3,FALSE)) ->  | E104: =IF(A104="","",VLOOKUP(B104,[2]语言配置表!$A:$E,5,FALSE)) ->  | F104: =IF(A104="","",VLOOKUP(C104,[2]语言配置表!$A:$E,5,FALSE)) -> 
B105: =IF(A105="","",VLOOKUP(A105,[1]ItemConfig!$A:$B,2,FALSE)) ->  | C105: =IF(A105="","",VLOOKUP(A105,[1]ItemConfig!$A:$D,4,FALSE)) ->  | D105: =IF(A105="","",VLOOKUP(A105,[1]ItemConfig!$A:$C,3,FALSE)) ->  | E105: =IF(A105="","",VLOOKUP(B105,[2]语言配置表!$A:$E,5,FALSE)) ->  | F105: =IF(A105="","",VLOOKUP(C105,[2]语言配置表!$A:$E,5,FALSE)) -> 
A106: 7703 | B106: =IF(A106="","",VLOOKUP(A106,[1]ItemConfig!$A:$B,2,FALSE)) ->  | C106: =IF(A106="","",VLOOKUP(A106,[1]ItemConfig!$A:$D,4,FALSE)) ->  | D106: =IF(A106="","",VLOOKUP(A106,[1]ItemConfig!$A:$C,3,FALSE)) ->  | E106: =IF(A106="","",VLOOKUP(B106,[2]语言配置表!$A:$E,5,FALSE)) ->  | F106: =IF(A106="","",VLOOKUP(C106,[2]语言配置表!$A:$E,5,FALSE)) -> 
B107: =IF(A107="","",VLOOKUP(A107,[1]ItemConfig!$A:$B,2,FALSE)) ->  | C107: =IF(A107="","",VLOOKUP(A107,[1]ItemConfig!$A:$D,4,FALSE)) ->  | D107: =IF(A107="","",VLOOKUP(A107,[1]ItemConfig!$A:$C,3,FALSE)) ->  | E107: =IF(A107="","",VLOOKUP(B107,[2]语言配置表!$A:$E,5,FALSE)) ->  | F107: =IF(A107="","",VLOOKUP(C107,[2]语言配置表!$A:$E,5,FALSE)) -> 
A108: 9000 | B108: =IF(A108="","",VLOOKUP(A108,[1]ItemConfig!$A:$B,2,FALSE)) ->  | C108: =IF(A108="","",VLOOKUP(A108,[1]ItemConfig!$A:$D,4,FALSE)) ->  | D108: =IF(A108="","",VLOOKUP(A108,[1]ItemConfig!$A:$C,3,FALSE)) ->  | E108: =IF(A108="","",VLOOKUP(B108,[2]语言配置表!$A:$E,5,FALSE)) ->  | F108: =IF(A108="","",VLOOKUP(C108,[2]语言配置表!$A:$E,5,FALSE)) -> 
A109: 9001 | B109: =IF(A109="","",VLOOKUP(A109,[1]ItemConfig!$A:$B,2,FALSE)) ->  | C109: =IF(A109="","",VLOOKUP(A109,[1]ItemConfig!$A:$D,4,FALSE)) ->  | D109: =IF(A109="","",VLOOKUP(A109,[1]ItemConfig!$A:$C,3,FALSE)) ->  | E109: =IF(A109="","",VLOOKUP(B109,[2]语言配置表!$A:$E,5,FALSE)) ->  | F109: =IF(A109="","",VLOOKUP(C109,[2]语言配置表!$A:$E,5,FALSE)) -> 
A110: 103001 | B110: =IF(A110="","",VLOOKUP(A110,[1]ItemConfig!$A:$B,2,FALSE)) ->  | C110: =IF(A110="","",VLOOKUP(A110,[1]ItemConfig!$A:$D,4,FALSE)) ->  | D110: =IF(A110="","",VLOOKUP(A110,[1]ItemConfig!$A:$C,3,FALSE)) ->  | E110: =IF(A110="","",VLOOKUP(B110,[2]语言配置表!$A:$E,5,FALSE)) ->  | F110: =IF(A110="","",VLOOKUP(C110,[2]语言配置表!$A:$E,5,FALSE)) -> 
A111: 103002 | B111: =IF(A111="","",VLOOKUP(A111,[1]ItemConfig!$A:$B,2,FALSE)) ->  | C111: =IF(A111="","",VLOOKUP(A111,[1]ItemConfig!$A:$D,4,FALSE)) ->  | D111: =IF(A111="","",VLOOKUP(A111,[1]ItemConfig!$A:$C,3,FALSE)) ->  | E111: =IF(A111="","",VLOOKUP(B111,[2]语言配置表!$A:$E,5,FALSE)) ->  | F111: =IF(A111="","",VLOOKUP(C111,[2]语言配置表!$A:$E,5,FALSE)) -> 
A112: 103003 | B112: =IF(A112="","",VLOOKUP(A112,[1]ItemConfig!$A:$B,2,FALSE)) ->  | C112: =IF(A112="","",VLOOKUP(A112,[1]ItemConfig!$A:$D,4,FALSE)) ->  | D112: =IF(A112="","",VLOOKUP(A112,[1]ItemConfig!$A:$C,3,FALSE)) ->  | E112: =IF(A112="","",VLOOKUP(B112,[2]语言配置表!$A:$E,5,FALSE)) ->  | F112: =IF(A112="","",VLOOKUP(C112,[2]语言配置表!$A:$E,5,FALSE)) -> 
A113: 103004 | B113: =IF(A113="","",VLOOKUP(A113,[1]ItemConfig!$A:$B,2,FALSE)) ->  | C113: =IF(A113="","",VLOOKUP(A113,[1]ItemConfig!$A:$D,4,FALSE)) ->  | D113: =IF(A113="","",VLOOKUP(A113,[1]ItemConfig!$A:$C,3,FALSE)) ->  | E113: =IF(A113="","",VLOOKUP(B113,[2]语言配置表!$A:$E,5,FALSE)) ->  | F113: =IF(A113="","",VLOOKUP(C113,[2]语言配置表!$A:$E,5,FALSE)) -> 
A114: 103005 | B114: =IF(A114="","",VLOOKUP(A114,[1]ItemConfig!$A:$B,2,FALSE)) ->  | C114: =IF(A114="","",VLOOKUP(A114,[1]ItemConfig!$A:$D,4,FALSE)) ->  | D114: =IF(A114="","",VLOOKUP(A114,[1]ItemConfig!$A:$C,3,FALSE)) ->  | E114: =IF(A114="","",VLOOKUP(B114,[2]语言配置表!$A:$E,5,FALSE)) ->  | F114: =IF(A114="","",VLOOKUP(C114,[2]语言配置表!$A:$E,5,FALSE)) -> 
A115: 105001 | B115: =IF(A115="","",VLOOKUP(A115,[1]ItemConfig!$A:$B,2,FALSE)) ->  | C115: =IF(A115="","",VLOOKUP(A115,[1]ItemConfig!$A:$D,4,FALSE)) ->  | D115: =IF(A115="","",VLOOKUP(A115,[1]ItemConfig!$A:$C,3,FALSE)) ->  | E115: =IF(A115="","",VLOOKUP(B115,[2]语言配置表!$A:$E,5,FALSE)) ->  | F115: =IF(A115="","",VLOOKUP(C115,[2]语言配置表!$A:$E,5,FALSE)) -> 
A116: 105002 | B116: =IF(A116="","",VLOOKUP(A116,[1]ItemConfig!$A:$B,2,FALSE)) ->  | C116: =IF(A116="","",VLOOKUP(A116,[1]ItemConfig!$A:$D,4,FALSE)) ->  | D116: =IF(A116="","",VLOOKUP(A116,[1]ItemConfig!$A:$C,3,FALSE)) ->  | E116: =IF(A116="","",VLOOKUP(B116,[2]语言配置表!$A:$E,5,FALSE)) ->  | F116: =IF(A116="","",VLOOKUP(C116,[2]语言配置表!$A:$E,5,FALSE)) -> 
A117: 105003 | B117: =IF(A117="","",VLOOKUP(A117,[1]ItemConfig!$A:$B,2,FALSE)) ->  | C117: =IF(A117="","",VLOOKUP(A117,[1]ItemConfig!$A:$D,4,FALSE)) ->  | D117: =IF(A117="","",VLOOKUP(A117,[1]ItemConfig!$A:$C,3,FALSE)) ->  | E117: =IF(A117="","",VLOOKUP(B117,[2]语言配置表!$A:$E,5,FALSE)) ->  | F117: =IF(A117="","",VLOOKUP(C117,[2]语言配置表!$A:$E,5,FALSE)) -> 
A118: 105004 | B118: =IF(A118="","",VLOOKUP(A118,[1]ItemConfig!$A:$B,2,FALSE)) ->  | C118: =IF(A118="","",VLOOKUP(A118,[1]ItemConfig!$A:$D,4,FALSE)) ->  | D118: =IF(A118="","",VLOOKUP(A118,[1]ItemConfig!$A:$C,3,FALSE)) ->  | E118: =IF(A118="","",VLOOKUP(B118,[2]语言配置表!$A:$E,5,FALSE)) ->  | F118: =IF(A118="","",VLOOKUP(C118,[2]语言配置表!$A:$E,5,FALSE)) -> 
A119: 105005 | B119: =IF(A119="","",VLOOKUP(A119,[1]ItemConfig!$A:$B,2,FALSE)) ->  | C119: =IF(A119="","",VLOOKUP(A119,[1]ItemConfig!$A:$D,4,FALSE)) ->  | D119: =IF(A119="","",VLOOKUP(A119,[1]ItemConfig!$A:$C,3,FALSE)) ->  | E119: =IF(A119="","",VLOOKUP(B119,[2]语言配置表!$A:$E,5,FALSE)) ->  | F119: =IF(A119="","",VLOOKUP(C119,[2]语言配置表!$A:$E,5,FALSE)) -> 
A120: 105006 | B120: =IF(A120="","",VLOOKUP(A120,[1]ItemConfig!$A:$B,2,FALSE)) ->  | C120: =IF(A120="","",VLOOKUP(A120,[1]ItemConfig!$A:$D,4,FALSE)) ->  | D120: =IF(A120="","",VLOOKUP(A120,[1]ItemConfig!$A:$C,3,FALSE)) ->  | E120: =IF(A120="","",VLOOKUP(B120,[2]语言配置表!$A:$E,5,FALSE)) ->  | F120: =IF(A120="","",VLOOKUP(C120,[2]语言配置表!$A:$E,5,FALSE)) -> 
A121: 105007 | B121: =IF(A121="","",VLOOKUP(A121,[1]ItemConfig!$A:$B,2,FALSE)) ->  | C121: =IF(A121="","",VLOOKUP(A121,[1]ItemConfig!$A:$D,4,FALSE)) ->  | D121: =IF(A121="","",VLOOKUP(A121,[1]ItemConfig!$A:$C,3,FALSE)) ->  | E121: =IF(A121="","",VLOOKUP(B121,[2]语言配置表!$A:$E,5,FALSE)) ->  | F121: =IF(A121="","",VLOOKUP(C121,[2]语言配置表!$A:$E,5,FALSE)) -> 
A122: 105008 | B122: =IF(A122="","",VLOOKUP(A122,[1]ItemConfig!$A:$B,2,FALSE)) ->  | C122: =IF(A122="","",VLOOKUP(A122,[1]ItemConfig!$A:$D,4,FALSE)) ->  | D122: =IF(A122="","",VLOOKUP(A122,[1]ItemConfig!$A:$C,3,FALSE)) ->  | E122: =IF(A122="","",VLOOKUP(B122,[2]语言配置表!$A:$E,5,FALSE)) ->  | F122: =IF(A122="","",VLOOKUP(C122,[2]语言配置表!$A:$E,5,FALSE)) -> 
A123: 105009 | B123: =IF(A123="","",VLOOKUP(A123,[1]ItemConfig!$A:$B,2,FALSE)) ->  | C123: =IF(A123="","",VLOOKUP(A123,[1]ItemConfig!$A:$D,4,FALSE)) ->  | D123: =IF(A123="","",VLOOKUP(A123,[1]ItemConfig!$A:$C,3,FALSE)) ->  | E123: =IF(A123="","",VLOOKUP(B123,[2]语言配置表!$A:$E,5,FALSE)) ->  | F123: =IF(A123="","",VLOOKUP(C123,[2]语言配置表!$A:$E,5,FALSE)) -> 
A124: 105010 | B124: =IF(A124="","",VLOOKUP(A124,[1]ItemConfig!$A:$B,2,FALSE)) ->  | C124: =IF(A124="","",VLOOKUP(A124,[1]ItemConfig!$A:$D,4,FALSE)) ->  | D124: =IF(A124="","",VLOOKUP(A124,[1]ItemConfig!$A:$C,3,FALSE)) ->  | E124: =IF(A124="","",VLOOKUP(B124,[2]语言配置表!$A:$E,5,FALSE)) ->  | F124: =IF(A124="","",VLOOKUP(C124,[2]语言配置表!$A:$E,5,FALSE)) -> 
A125: 107001 | B125: =IF(A125="","",VLOOKUP(A125,[1]ItemConfig!$A:$B,2,FALSE)) ->  | C125: =IF(A125="","",VLOOKUP(A125,[1]ItemConfig!$A:$D,4,FALSE)) ->  | D125: =IF(A125="","",VLOOKUP(A125,[1]ItemConfig!$A:$C,3,FALSE)) ->  | E125: =IF(A125="","",VLOOKUP(B125,[2]语言配置表!$A:$E,5,FALSE)) ->  | F125: =IF(A125="","",VLOOKUP(C125,[2]语言配置表!$A:$E,5,FALSE)) -> 
A126: 107002 | B126: =IF(A126="","",VLOOKUP(A126,[1]ItemConfig!$A:$B,2,FALSE)) ->  | C126: =IF(A126="","",VLOOKUP(A126,[1]ItemConfig!$A:$D,4,FALSE)) ->  | D126: =IF(A126="","",VLOOKUP(A126,[1]ItemConfig!$A:$C,3,FALSE)) ->  | E126: =IF(A126="","",VLOOKUP(B126,[2]语言配置表!$A:$E,5,FALSE)) ->  | F126: =IF(A126="","",VLOOKUP(C126,[2]语言配置表!$A:$E,5,FALSE)) -> 
A127: 107003 | B127: =IF(A127="","",VLOOKUP(A127,[1]ItemConfig!$A:$B,2,FALSE)) ->  | C127: =IF(A127="","",VLOOKUP(A127,[1]ItemConfig!$A:$D,4,FALSE)) ->  | D127: =IF(A127="","",VLOOKUP(A127,[1]ItemConfig!$A:$C,3,FALSE)) ->  | E127: =IF(A127="","",VLOOKUP(B127,[2]语言配置表!$A:$E,5,FALSE)) ->  | F127: =IF(A127="","",VLOOKUP(C127,[2]语言配置表!$A:$E,5,FALSE)) -> 
A128: 108001 | B128: =IF(A128="","",VLOOKUP(A128,[1]ItemConfig!$A:$B,2,FALSE)) ->  | C128: =IF(A128="","",VLOOKUP(A128,[1]ItemConfig!$A:$D,4,FALSE)) ->  | D128: =IF(A128="","",VLOOKUP(A128,[1]ItemConfig!$A:$C,3,FALSE)) ->  | E128: =IF(A128="","",VLOOKUP(B128,[2]语言配置表!$A:$E,5,FALSE)) ->  | F128: =IF(A128="","",VLOOKUP(C128,[2]语言配置表!$A:$E,5,FALSE)) -> 
A129: 108002 | B129: =IF(A129="","",VLOOKUP(A129,[1]ItemConfig!$A:$B,2,FALSE)) ->  | C129: =IF(A129="","",VLOOKUP(A129,[1]ItemConfig!$A:$D,4,FALSE)) ->  | D129: =IF(A129="","",VLOOKUP(A129,[1]ItemConfig!$A:$C,3,FALSE)) ->  | E129: =IF(A129="","",VLOOKUP(B129,[2]语言配置表!$A:$E,5,FALSE)) ->  | F129: =IF(A129="","",VLOOKUP(C129,[2]语言配置表!$A:$E,5,FALSE)) -> 
B130: =IF(A130="","",VLOOKUP(A130,[1]ItemConfig!$A:$B,2,FALSE)) ->  | C130: =IF(A130="","",VLOOKUP(A130,[1]ItemConfig!$A:$D,4,FALSE)) ->  | D130: =IF(A130="","",VLOOKUP(A130,[1]ItemConfig!$A:$C,3,FALSE)) ->  | E130: =IF(A130="","",VLOOKUP(B130,[2]语言配置表!$A:$E,5,FALSE)) ->  | F130: =IF(A130="","",VLOOKUP(C130,[2]语言配置表!$A:$E,5,FALSE)) -> 
A131: 5001 | B131: =IF(A131="","",VLOOKUP(A131,[1]ItemConfig!$A:$B,2,FALSE)) ->  | C131: =IF(A131="","",VLOOKUP(A131,[1]ItemConfig!$A:$D,4,FALSE)) ->  | D131: =IF(A131="","",VLOOKUP(A131,[1]ItemConfig!$A:$C,3,FALSE)) ->  | E131: =IF(A131="","",VLOOKUP(B131,[2]语言配置表!$A:$E,5,FALSE)) ->  | F131: =IF(A131="","",VLOOKUP(C131,[2]语言配置表!$A:$E,5,FALSE)) -> 
A132: 5002 | B132: =IF(A132="","",VLOOKUP(A132,[1]ItemConfig!$A:$B,2,FALSE)) ->  | C132: =IF(A132="","",VLOOKUP(A132,[1]ItemConfig!$A:$D,4,FALSE)) ->  | D132: =IF(A132="","",VLOOKUP(A132,[1]ItemConfig!$A:$C,3,FALSE)) ->  | E132: =IF(A132="","",VLOOKUP(B132,[2]语言配置表!$A:$E,5,FALSE)) ->  | F132: =IF(A132="","",VLOOKUP(C132,[2]语言配置表!$A:$E,5,FALSE)) -> 
A133: 5003 | B133: =IF(A133="","",VLOOKUP(A133,[1]ItemConfig!$A:$B,2,FALSE)) ->  | C133: =IF(A133="","",VLOOKUP(A133,[1]ItemConfig!$A:$D,4,FALSE)) ->  | D133: =IF(A133="","",VLOOKUP(A133,[1]ItemConfig!$A:$C,3,FALSE)) ->  | E133: =IF(A133="","",VLOOKUP(B133,[2]语言配置表!$A:$E,5,FALSE)) ->  | F133: =IF(A133="","",VLOOKUP(C133,[2]语言配置表!$A:$E,5,FALSE)) -> 
A134: 5004 | B134: =IF(A134="","",VLOOKUP(A134,[1]ItemConfig!$A:$B,2,FALSE)) ->  | C134: =IF(A134="","",VLOOKUP(A134,[1]ItemConfig!$A:$D,4,FALSE)) ->  | D134: =IF(A134="","",VLOOKUP(A134,[1]ItemConfig!$A:$C,3,FALSE)) ->  | E134: =IF(A134="","",VLOOKUP(B134,[2]语言配置表!$A:$E,5,FALSE)) ->  | F134: =IF(A134="","",VLOOKUP(C134,[2]语言配置表!$A:$E,5,FALSE)) -> 
A135: 5005 | B135: =IF(A135="","",VLOOKUP(A135,[1]ItemConfig!$A:$B,2,FALSE)) ->  | C135: =IF(A135="","",VLOOKUP(A135,[1]ItemConfig!$A:$D,4,FALSE)) ->  | D135: =IF(A135="","",VLOOKUP(A135,[1]ItemConfig!$A:$C,3,FALSE)) ->  | E135: =IF(A135="","",VLOOKUP(B135,[2]语言配置表!$A:$E,5,FALSE)) ->  | F135: =IF(A135="","",VLOOKUP(C135,[2]语言配置表!$A:$E,5,FALSE)) -> 
A136: 5006 | B136: =IF(A136="","",VLOOKUP(A136,[1]ItemConfig!$A:$B,2,FALSE)) ->  | C136: =IF(A136="","",VLOOKUP(A136,[1]ItemConfig!$A:$D,4,FALSE)) ->  | D136: =IF(A136="","",VLOOKUP(A136,[1]ItemConfig!$A:$C,3,FALSE)) ->  | E136: =IF(A136="","",VLOOKUP(B136,[2]语言配置表!$A:$E,5,FALSE)) ->  | F136: =IF(A136="","",VLOOKUP(C136,[2]语言配置表!$A:$E,5,FALSE)) -> 
A137: 5007 | B137: =IF(A137="","",VLOOKUP(A137,[1]ItemConfig!$A:$B,2,FALSE)) ->  | C137: =IF(A137="","",VLOOKUP(A137,[1]ItemConfig!$A:$D,4,FALSE)) ->  | D137: =IF(A137="","",VLOOKUP(A137,[1]ItemConfig!$A:$C,3,FALSE)) ->  | E137: =IF(A137="","",VLOOKUP(B137,[2]语言配置表!$A:$E,5,FALSE)) ->  | F137: =IF(A137="","",VLOOKUP(C137,[2]语言配置表!$A:$E,5,FALSE)) -> 
A138: 5008 | B138: =IF(A138="","",VLOOKUP(A138,[1]ItemConfig!$A:$B,2,FALSE)) ->  | C138: =IF(A138="","",VLOOKUP(A138,[1]ItemConfig!$A:$D,4,FALSE)) ->  | D138: =IF(A138="","",VLOOKUP(A138,[1]ItemConfig!$A:$C,3,FALSE)) ->  | E138: =IF(A138="","",VLOOKUP(B138,[2]语言配置表!$A:$E,5,FALSE)) ->  | F138: =IF(A138="","",VLOOKUP(C138,[2]语言配置表!$A:$E,5,FALSE)) -> 
A139: 5009 | B139: =IF(A139="","",VLOOKUP(A139,[1]ItemConfig!$A:$B,2,FALSE)) ->  | C139: =IF(A139="","",VLOOKUP(A139,[1]ItemConfig!$A:$D,4,FALSE)) ->  | D139: =IF(A139="","",VLOOKUP(A139,[1]ItemConfig!$A:$C,3,FALSE)) ->  | E139: =IF(A139="","",VLOOKUP(B139,[2]语言配置表!$A:$E,5,FALSE)) ->  | F139: =IF(A139="","",VLOOKUP(C139,[2]语言配置表!$A:$E,5,FALSE)) -> 
A140: 5010 | B140: =IF(A140="","",VLOOKUP(A140,[1]ItemConfig!$A:$B,2,FALSE)) ->  | C140: =IF(A140="","",VLOOKUP(A140,[1]ItemConfig!$A:$D,4,FALSE)) ->  | D140: =IF(A140="","",VLOOKUP(A140,[1]ItemConfig!$A:$C,3,FALSE)) ->  | E140: =IF(A140="","",VLOOKUP(B140,[2]语言配置表!$A:$E,5,FALSE)) ->  | F140: =IF(A140="","",VLOOKUP(C140,[2]语言配置表!$A:$E,5,FALSE)) -> 
A141: 5011 | B141: =IF(A141="","",VLOOKUP(A141,[1]ItemConfig!$A:$B,2,FALSE)) ->  | C141: =IF(A141="","",VLOOKUP(A141,[1]ItemConfig!$A:$D,4,FALSE)) ->  | D141: =IF(A141="","",VLOOKUP(A141,[1]ItemConfig!$A:$C,3,FALSE)) ->  | E141: =IF(A141="","",VLOOKUP(B141,[2]语言配置表!$A:$E,5,FALSE)) ->  | F141: =IF(A141="","",VLOOKUP(C141,[2]语言配置表!$A:$E,5,FALSE)) -> 
A142: 5012 | B142: =IF(A142="","",VLOOKUP(A142,[1]ItemConfig!$A:$B,2,FALSE)) ->  | C142: =IF(A142="","",VLOOKUP(A142,[1]ItemConfig!$A:$D,4,FALSE)) ->  | D142: =IF(A142="","",VLOOKUP(A142,[1]ItemConfig!$A:$C,3,FALSE)) ->  | E142: =IF(A142="","",VLOOKUP(B142,[2]语言配置表!$A:$E,5,FALSE)) ->  | F142: =IF(A142="","",VLOOKUP(C142,[2]语言配置表!$A:$E,5,FALSE)) -> 
A143: 5013 | B143: =IF(A143="","",VLOOKUP(A143,[1]ItemConfig!$A:$B,2,FALSE)) ->  | C143: =IF(A143="","",VLOOKUP(A143,[1]ItemConfig!$A:$D,4,FALSE)) ->  | D143: =IF(A143="","",VLOOKUP(A143,[1]ItemConfig!$A:$C,3,FALSE)) ->  | E143: =IF(A143="","",VLOOKUP(B143,[2]语言配置表!$A:$E,5,FALSE)) ->  | F143: =IF(A143="","",VLOOKUP(C143,[2]语言配置表!$A:$E,5,FALSE)) -> 
A144: 5014 | B144: =IF(A144="","",VLOOKUP(A144,[1]ItemConfig!$A:$B,2,FALSE)) ->  | C144: =IF(A144="","",VLOOKUP(A144,[1]ItemConfig!$A:$D,4,FALSE)) ->  | D144: =IF(A144="","",VLOOKUP(A144,[1]ItemConfig!$A:$C,3,FALSE)) ->  | E144: =IF(A144="","",VLOOKUP(B144,[2]语言配置表!$A:$E,5,FALSE)) ->  | F144: =IF(A144="","",VLOOKUP(C144,[2]语言配置表!$A:$E,5,FALSE)) -> 
A145: 5015 | B145: =IF(A145="","",VLOOKUP(A145,[1]ItemConfig!$A:$B,2,FALSE)) ->  | C145: =IF(A145="","",VLOOKUP(A145,[1]ItemConfig!$A:$D,4,FALSE)) ->  | D145: =IF(A145="","",VLOOKUP(A145,[1]ItemConfig!$A:$C,3,FALSE)) ->  | E145: =IF(A145="","",VLOOKUP(B145,[2]语言配置表!$A:$E,5,FALSE)) ->  | F145: =IF(A145="","",VLOOKUP(C145,[2]语言配置表!$A:$E,5,FALSE)) -> 
A146: 5016 | B146: =IF(A146="","",VLOOKUP(A146,[1]ItemConfig!$A:$B,2,FALSE)) ->  | C146: =IF(A146="","",VLOOKUP(A146,[1]ItemConfig!$A:$D,4,FALSE)) ->  | D146: =IF(A146="","",VLOOKUP(A146,[1]ItemConfig!$A:$C,3,FALSE)) ->  | E146: =IF(A146="","",VLOOKUP(B146,[2]语言配置表!$A:$E,5,FALSE)) ->  | F146: =IF(A146="","",VLOOKUP(C146,[2]语言配置表!$A:$E,5,FALSE)) -> 
B147: =IF(A147="","",VLOOKUP(A147,[1]ItemConfig!$A:$B,2,FALSE)) ->  | C147: =IF(A147="","",VLOOKUP(A147,[1]ItemConfig!$A:$D,4,FALSE)) ->  | D147: =IF(A147="","",VLOOKUP(A147,[1]ItemConfig!$A:$C,3,FALSE)) ->  | E147: =IF(A147="","",VLOOKUP(B147,[2]语言配置表!$A:$E,5,FALSE)) ->  | F147: =IF(A147="","",VLOOKUP(C147,[2]语言配置表!$A:$E,5,FALSE)) -> 
A148: 5017 | B148: =IF(A148="","",VLOOKUP(A148,[1]ItemConfig!$A:$B,2,FALSE)) ->  | C148: =IF(A148="","",VLOOKUP(A148,[1]ItemConfig!$A:$D,4,FALSE)) ->  | D148: =IF(A148="","",VLOOKUP(A148,[1]ItemConfig!$A:$C,3,FALSE)) ->  | E148: =IF(A148="","",VLOOKUP(B148,[2]语言配置表!$A:$E,5,FALSE)) ->  | F148: =IF(A148="","",VLOOKUP(C148,[2]语言配置表!$A:$E,5,FALSE)) -> 
A149: 5018 | B149: =IF(A149="","",VLOOKUP(A149,[1]ItemConfig!$A:$B,2,FALSE)) ->  | C149: =IF(A149="","",VLOOKUP(A149,[1]ItemConfig!$A:$D,4,FALSE)) ->  | D149: =IF(A149="","",VLOOKUP(A149,[1]ItemConfig!$A:$C,3,FALSE)) ->  | E149: =IF(A149="","",VLOOKUP(B149,[2]语言配置表!$A:$E,5,FALSE)) ->  | F149: =IF(A149="","",VLOOKUP(C149,[2]语言配置表!$A:$E,5,FALSE)) -> 
A150: 5019 | B150: =IF(A150="","",VLOOKUP(A150,[1]ItemConfig!$A:$B,2,FALSE)) ->  | C150: =IF(A150="","",VLOOKUP(A150,[1]ItemConfig!$A:$D,4,FALSE)) ->  | D150: =IF(A150="","",VLOOKUP(A150,[1]ItemConfig!$A:$C,3,FALSE)) ->  | E150: =IF(A150="","",VLOOKUP(B150,[2]语言配置表!$A:$E,5,FALSE)) ->  | F150: =IF(A150="","",VLOOKUP(C150,[2]语言配置表!$A:$E,5,FALSE)) -> 
A151: 5020 | B151: =IF(A151="","",VLOOKUP(A151,[1]ItemConfig!$A:$B,2,FALSE)) ->  | C151: =IF(A151="","",VLOOKUP(A151,[1]ItemConfig!$A:$D,4,FALSE)) ->  | D151: =IF(A151="","",VLOOKUP(A151,[1]ItemConfig!$A:$C,3,FALSE)) ->  | E151: =IF(A151="","",VLOOKUP(B151,[2]语言配置表!$A:$E,5,FALSE)) ->  | F151: =IF(A151="","",VLOOKUP(C151,[2]语言配置表!$A:$E,5,FALSE)) -> 
A152: 5021 | B152: =IF(A152="","",VLOOKUP(A152,[1]ItemConfig!$A:$B,2,FALSE)) ->  | C152: =IF(A152="","",VLOOKUP(A152,[1]ItemConfig!$A:$D,4,FALSE)) ->  | D152: =IF(A152="","",VLOOKUP(A152,[1]ItemConfig!$A:$C,3,FALSE)) ->  | E152: =IF(A152="","",VLOOKUP(B152,[2]语言配置表!$A:$E,5,FALSE)) ->  | F152: =IF(A152="","",VLOOKUP(C152,[2]语言配置表!$A:$E,5,FALSE)) -> 
A153: 5022 | B153: =IF(A153="","",VLOOKUP(A153,[1]ItemConfig!$A:$B,2,FALSE)) ->  | C153: =IF(A153="","",VLOOKUP(A153,[1]ItemConfig!$A:$D,4,FALSE)) ->  | D153: =IF(A153="","",VLOOKUP(A153,[1]ItemConfig!$A:$C,3,FALSE)) ->  | E153: =IF(A153="","",VLOOKUP(B153,[2]语言配置表!$A:$E,5,FALSE)) ->  | F153: =IF(A153="","",VLOOKUP(C153,[2]语言配置表!$A:$E,5,FALSE)) -> 
A154: 5023 | B154: =IF(A154="","",VLOOKUP(A154,[1]ItemConfig!$A:$B,2,FALSE)) ->  | C154: =IF(A154="","",VLOOKUP(A154,[1]ItemConfig!$A:$D,4,FALSE)) ->  | D154: =IF(A154="","",VLOOKUP(A154,[1]ItemConfig!$A:$C,3,FALSE)) ->  | E154: =IF(A154="","",VLOOKUP(B154,[2]语言配置表!$A:$E,5,FALSE)) ->  | F154: =IF(A154="","",VLOOKUP(C154,[2]语言配置表!$A:$E,5,FALSE)) -> 
A155: 5024 | B155: =IF(A155="","",VLOOKUP(A155,[1]ItemConfig!$A:$B,2,FALSE)) ->  | C155: =IF(A155="","",VLOOKUP(A155,[1]ItemConfig!$A:$D,4,FALSE)) ->  | D155: =IF(A155="","",VLOOKUP(A155,[1]ItemConfig!$A:$C,3,FALSE)) ->  | E155: =IF(A155="","",VLOOKUP(B155,[2]语言配置表!$A:$E,5,FALSE)) ->  | F155: =IF(A155="","",VLOOKUP(C155,[2]语言配置表!$A:$E,5,FALSE)) -> 
A156: 5025 | B156: =IF(A156="","",VLOOKUP(A156,[1]ItemConfig!$A:$B,2,FALSE)) ->  | C156: =IF(A156="","",VLOOKUP(A156,[1]ItemConfig!$A:$D,4,FALSE)) ->  | D156: =IF(A156="","",VLOOKUP(A156,[1]ItemConfig!$A:$C,3,FALSE)) ->  | E156: =IF(A156="","",VLOOKUP(B156,[2]语言配置表!$A:$E,5,FALSE)) ->  | F156: =IF(A156="","",VLOOKUP(C156,[2]语言配置表!$A:$E,5,FALSE)) -> 
A157: 5026 | B157: =IF(A157="","",VLOOKUP(A157,[1]ItemConfig!$A:$B,2,FALSE)) ->  | C157: =IF(A157="","",VLOOKUP(A157,[1]ItemConfig!$A:$D,4,FALSE)) ->  | D157: =IF(A157="","",VLOOKUP(A157,[1]ItemConfig!$A:$C,3,FALSE)) ->  | E157: =IF(A157="","",VLOOKUP(B157,[2]语言配置表!$A:$E,5,FALSE)) ->  | F157: =IF(A157="","",VLOOKUP(C157,[2]语言配置表!$A:$E,5,FALSE)) -> 
A158: 5027 | B158: =IF(A158="","",VLOOKUP(A158,[1]ItemConfig!$A:$B,2,FALSE)) ->  | C158: =IF(A158="","",VLOOKUP(A158,[1]ItemConfig!$A:$D,4,FALSE)) ->  | D158: =IF(A158="","",VLOOKUP(A158,[1]ItemConfig!$A:$C,3,FALSE)) ->  | E158: =IF(A158="","",VLOOKUP(B158,[2]语言配置表!$A:$E,5,FALSE)) ->  | F158: =IF(A158="","",VLOOKUP(C158,[2]语言配置表!$A:$E,5,FALSE)) -> 
A159: 5028 | B159: =IF(A159="","",VLOOKUP(A159,[1]ItemConfig!$A:$B,2,FALSE)) ->  | C159: =IF(A159="","",VLOOKUP(A159,[1]ItemConfig!$A:$D,4,FALSE)) ->  | D159: =IF(A159="","",VLOOKUP(A159,[1]ItemConfig!$A:$C,3,FALSE)) ->  | E159: =IF(A159="","",VLOOKUP(B159,[2]语言配置表!$A:$E,5,FALSE)) ->  | F159: =IF(A159="","",VLOOKUP(C159,[2]语言配置表!$A:$E,5,FALSE)) -> 
A160: 5029 | B160: =IF(A160="","",VLOOKUP(A160,[1]ItemConfig!$A:$B,2,FALSE)) ->  | C160: =IF(A160="","",VLOOKUP(A160,[1]ItemConfig!$A:$D,4,FALSE)) ->  | D160: =IF(A160="","",VLOOKUP(A160,[1]ItemConfig!$A:$C,3,FALSE)) ->  | E160: =IF(A160="","",VLOOKUP(B160,[2]语言配置表!$A:$E,5,FALSE)) ->  | F160: =IF(A160="","",VLOOKUP(C160,[2]语言配置表!$A:$E,5,FALSE)) -> 
A161: 5030 | B161: =IF(A161="","",VLOOKUP(A161,[1]ItemConfig!$A:$B,2,FALSE)) ->  | C161: =IF(A161="","",VLOOKUP(A161,[1]ItemConfig!$A:$D,4,FALSE)) ->  | D161: =IF(A161="","",VLOOKUP(A161,[1]ItemConfig!$A:$C,3,FALSE)) ->  | E161: =IF(A161="","",VLOOKUP(B161,[2]语言配置表!$A:$E,5,FALSE)) ->  | F161: =IF(A161="","",VLOOKUP(C161,[2]语言配置表!$A:$E,5,FALSE)) -> 
A162: 5031 | B162: =IF(A162="","",VLOOKUP(A162,[1]ItemConfig!$A:$B,2,FALSE)) ->  | C162: =IF(A162="","",VLOOKUP(A162,[1]ItemConfig!$A:$D,4,FALSE)) ->  | D162: =IF(A162="","",VLOOKUP(A162,[1]ItemConfig!$A:$C,3,FALSE)) ->  | E162: =IF(A162="","",VLOOKUP(B162,[2]语言配置表!$A:$E,5,FALSE)) ->  | F162: =IF(A162="","",VLOOKUP(C162,[2]语言配置表!$A:$E,5,FALSE)) -> 
A163: 5032 | B163: =IF(A163="","",VLOOKUP(A163,[1]ItemConfig!$A:$B,2,FALSE)) ->  | C163: =IF(A163="","",VLOOKUP(A163,[1]ItemConfig!$A:$D,4,FALSE)) ->  | D163: =IF(A163="","",VLOOKUP(A163,[1]ItemConfig!$A:$C,3,FALSE)) ->  | E163: =IF(A163="","",VLOOKUP(B163,[2]语言配置表!$A:$E,5,FALSE)) ->  | F163: =IF(A163="","",VLOOKUP(C163,[2]语言配置表!$A:$E,5,FALSE)) -> 
B164: =IF(A164="","",VLOOKUP(A164,[1]ItemConfig!$A:$B,2,FALSE)) ->  | C164: =IF(A164="","",VLOOKUP(A164,[1]ItemConfig!$A:$D,4,FALSE)) ->  | D164: =IF(A164="","",VLOOKUP(A164,[1]ItemConfig!$A:$C,3,FALSE)) ->  | E164: =IF(A164="","",VLOOKUP(B164,[2]语言配置表!$A:$E,5,FALSE)) ->  | F164: =IF(A164="","",VLOOKUP(C164,[2]语言配置表!$A:$E,5,FALSE)) -> 
A165: 5033 | B165: =IF(A165="","",VLOOKUP(A165,[1]ItemConfig!$A:$B,2,FALSE)) ->  | C165: =IF(A165="","",VLOOKUP(A165,[1]ItemConfig!$A:$D,4,FALSE)) ->  | D165: =IF(A165="","",VLOOKUP(A165,[1]ItemConfig!$A:$C,3,FALSE)) ->  | E165: =IF(A165="","",VLOOKUP(B165,[2]语言配置表!$A:$E,5,FALSE)) ->  | F165: =IF(A165="","",VLOOKUP(C165,[2]语言配置表!$A:$E,5,FALSE)) -> 
A166: 5034 | B166: =IF(A166="","",VLOOKUP(A166,[1]ItemConfig!$A:$B,2,FALSE)) ->  | C166: =IF(A166="","",VLOOKUP(A166,[1]ItemConfig!$A:$D,4,FALSE)) ->  | D166: =IF(A166="","",VLOOKUP(A166,[1]ItemConfig!$A:$C,3,FALSE)) ->  | E166: =IF(A166="","",VLOOKUP(B166,[2]语言配置表!$A:$E,5,FALSE)) ->  | F166: =IF(A166="","",VLOOKUP(C166,[2]语言配置表!$A:$E,5,FALSE)) -> 
A167: 5035 | B167: =IF(A167="","",VLOOKUP(A167,[1]ItemConfig!$A:$B,2,FALSE)) ->  | C167: =IF(A167="","",VLOOKUP(A167,[1]ItemConfig!$A:$D,4,FALSE)) ->  | D167: =IF(A167="","",VLOOKUP(A167,[1]ItemConfig!$A:$C,3,FALSE)) ->  | E167: =IF(A167="","",VLOOKUP(B167,[2]语言配置表!$A:$E,5,FALSE)) ->  | F167: =IF(A167="","",VLOOKUP(C167,[2]语言配置表!$A:$E,5,FALSE)) -> 
A168: 5036 | B168: =IF(A168="","",VLOOKUP(A168,[1]ItemConfig!$A:$B,2,FALSE)) ->  | C168: =IF(A168="","",VLOOKUP(A168,[1]ItemConfig!$A:$D,4,FALSE)) ->  | D168: =IF(A168="","",VLOOKUP(A168,[1]ItemConfig!$A:$C,3,FALSE)) ->  | E168: =IF(A168="","",VLOOKUP(B168,[2]语言配置表!$A:$E,5,FALSE)) ->  | F168: =IF(A168="","",VLOOKUP(C168,[2]语言配置表!$A:$E,5,FALSE)) -> 
A169: 5037 | B169: =IF(A169="","",VLOOKUP(A169,[1]ItemConfig!$A:$B,2,FALSE)) ->  | C169: =IF(A169="","",VLOOKUP(A169,[1]ItemConfig!$A:$D,4,FALSE)) ->  | D169: =IF(A169="","",VLOOKUP(A169,[1]ItemConfig!$A:$C,3,FALSE)) ->  | E169: =IF(A169="","",VLOOKUP(B169,[2]语言配置表!$A:$E,5,FALSE)) ->  | F169: =IF(A169="","",VLOOKUP(C169,[2]语言配置表!$A:$E,5,FALSE)) -> 
A170: 5038 | B170: =IF(A170="","",VLOOKUP(A170,[1]ItemConfig!$A:$B,2,FALSE)) ->  | C170: =IF(A170="","",VLOOKUP(A170,[1]ItemConfig!$A:$D,4,FALSE)) ->  | D170: =IF(A170="","",VLOOKUP(A170,[1]ItemConfig!$A:$C,3,FALSE)) ->  | E170: =IF(A170="","",VLOOKUP(B170,[2]语言配置表!$A:$E,5,FALSE)) ->  | F170: =IF(A170="","",VLOOKUP(C170,[2]语言配置表!$A:$E,5,FALSE)) -> 
A171: 5039 | B171: =IF(A171="","",VLOOKUP(A171,[1]ItemConfig!$A:$B,2,FALSE)) ->  | C171: =IF(A171="","",VLOOKUP(A171,[1]ItemConfig!$A:$D,4,FALSE)) ->  | D171: =IF(A171="","",VLOOKUP(A171,[1]ItemConfig!$A:$C,3,FALSE)) ->  | E171: =IF(A171="","",VLOOKUP(B171,[2]语言配置表!$A:$E,5,FALSE)) ->  | F171: =IF(A171="","",VLOOKUP(C171,[2]语言配置表!$A:$E,5,FALSE)) -> 
A172: 5040 | B172: =IF(A172="","",VLOOKUP(A172,[1]ItemConfig!$A:$B,2,FALSE)) ->  | C172: =IF(A172="","",VLOOKUP(A172,[1]ItemConfig!$A:$D,4,FALSE)) ->  | D172: =IF(A172="","",VLOOKUP(A172,[1]ItemConfig!$A:$C,3,FALSE)) ->  | E172: =IF(A172="","",VLOOKUP(B172,[2]语言配置表!$A:$E,5,FALSE)) ->  | F172: =IF(A172="","",VLOOKUP(C172,[2]语言配置表!$A:$E,5,FALSE)) -> 
A173: 5041 | B173: =IF(A173="","",VLOOKUP(A173,[1]ItemConfig!$A:$B,2,FALSE)) ->  | C173: =IF(A173="","",VLOOKUP(A173,[1]ItemConfig!$A:$D,4,FALSE)) ->  | D173: =IF(A173="","",VLOOKUP(A173,[1]ItemConfig!$A:$C,3,FALSE)) ->  | E173: =IF(A173="","",VLOOKUP(B173,[2]语言配置表!$A:$E,5,FALSE)) ->  | F173: =IF(A173="","",VLOOKUP(C173,[2]语言配置表!$A:$E,5,FALSE)) -> 
A174: 5042 | B174: =IF(A174="","",VLOOKUP(A174,[1]ItemConfig!$A:$B,2,FALSE)) ->  | C174: =IF(A174="","",VLOOKUP(A174,[1]ItemConfig!$A:$D,4,FALSE)) ->  | D174: =IF(A174="","",VLOOKUP(A174,[1]ItemConfig!$A:$C,3,FALSE)) ->  | E174: =IF(A174="","",VLOOKUP(B174,[2]语言配置表!$A:$E,5,FALSE)) ->  | F174: =IF(A174="","",VLOOKUP(C174,[2]语言配置表!$A:$E,5,FALSE)) -> 
A175: 5043 | B175: =IF(A175="","",VLOOKUP(A175,[1]ItemConfig!$A:$B,2,FALSE)) ->  | C175: =IF(A175="","",VLOOKUP(A175,[1]ItemConfig!$A:$D,4,FALSE)) ->  | D175: =IF(A175="","",VLOOKUP(A175,[1]ItemConfig!$A:$C,3,FALSE)) ->  | E175: =IF(A175="","",VLOOKUP(B175,[2]语言配置表!$A:$E,5,FALSE)) ->  | F175: =IF(A175="","",VLOOKUP(C175,[2]语言配置表!$A:$E,5,FALSE)) -> 
A176: 5044 | B176: =IF(A176="","",VLOOKUP(A176,[1]ItemConfig!$A:$B,2,FALSE)) ->  | C176: =IF(A176="","",VLOOKUP(A176,[1]ItemConfig!$A:$D,4,FALSE)) ->  | D176: =IF(A176="","",VLOOKUP(A176,[1]ItemConfig!$A:$C,3,FALSE)) ->  | E176: =IF(A176="","",VLOOKUP(B176,[2]语言配置表!$A:$E,5,FALSE)) ->  | F176: =IF(A176="","",VLOOKUP(C176,[2]语言配置表!$A:$E,5,FALSE)) -> 
A177: 5045 | B177: =IF(A177="","",VLOOKUP(A177,[1]ItemConfig!$A:$B,2,FALSE)) ->  | C177: =IF(A177="","",VLOOKUP(A177,[1]ItemConfig!$A:$D,4,FALSE)) ->  | D177: =IF(A177="","",VLOOKUP(A177,[1]ItemConfig!$A:$C,3,FALSE)) ->  | E177: =IF(A177="","",VLOOKUP(B177,[2]语言配置表!$A:$E,5,FALSE)) ->  | F177: =IF(A177="","",VLOOKUP(C177,[2]语言配置表!$A:$E,5,FALSE)) -> 
A178: 5046 | B178: =IF(A178="","",VLOOKUP(A178,[1]ItemConfig!$A:$B,2,FALSE)) ->  | C178: =IF(A178="","",VLOOKUP(A178,[1]ItemConfig!$A:$D,4,FALSE)) ->  | D178: =IF(A178="","",VLOOKUP(A178,[1]ItemConfig!$A:$C,3,FALSE)) ->  | E178: =IF(A178="","",VLOOKUP(B178,[2]语言配置表!$A:$E,5,FALSE)) ->  | F178: =IF(A178="","",VLOOKUP(C178,[2]语言配置表!$A:$E,5,FALSE)) -> 
A179: 5047 | B179: =IF(A179="","",VLOOKUP(A179,[1]ItemConfig!$A:$B,2,FALSE)) ->  | C179: =IF(A179="","",VLOOKUP(A179,[1]ItemConfig!$A:$D,4,FALSE)) ->  | D179: =IF(A179="","",VLOOKUP(A179,[1]ItemConfig!$A:$C,3,FALSE)) ->  | E179: =IF(A179="","",VLOOKUP(B179,[2]语言配置表!$A:$E,5,FALSE)) ->  | F179: =IF(A179="","",VLOOKUP(C179,[2]语言配置表!$A:$E,5,FALSE)) -> 
A180: 5048 | B180: =IF(A180="","",VLOOKUP(A180,[1]ItemConfig!$A:$B,2,FALSE)) ->  | C180: =IF(A180="","",VLOOKUP(A180,[1]ItemConfig!$A:$D,4,FALSE)) ->  | D180: =IF(A180="","",VLOOKUP(A180,[1]ItemConfig!$A:$C,3,FALSE)) ->  | E180: =IF(A180="","",VLOOKUP(B180,[2]语言配置表!$A:$E,5,FALSE)) ->  | F180: =IF(A180="","",VLOOKUP(C180,[2]语言配置表!$A:$E,5,FALSE)) -> 
B181: =IF(A181="","",VLOOKUP(A181,[1]ItemConfig!$A:$B,2,FALSE)) ->  | C181: =IF(A181="","",VLOOKUP(A181,[1]ItemConfig!$A:$D,4,FALSE)) ->  | D181: =IF(A181="","",VLOOKUP(A181,[1]ItemConfig!$A:$C,3,FALSE)) ->  | E181: =IF(A181="","",VLOOKUP(B181,[2]语言配置表!$A:$E,5,FALSE)) ->  | F181: =IF(A181="","",VLOOKUP(C181,[2]语言配置表!$A:$E,5,FALSE)) -> 
A182: 5049 | B182: =IF(A182="","",VLOOKUP(A182,[1]ItemConfig!$A:$B,2,FALSE)) ->  | C182: =IF(A182="","",VLOOKUP(A182,[1]ItemConfig!$A:$D,4,FALSE)) ->  | D182: =IF(A182="","",VLOOKUP(A182,[1]ItemConfig!$A:$C,3,FALSE)) ->  | E182: =IF(A182="","",VLOOKUP(B182,[2]语言配置表!$A:$E,5,FALSE)) ->  | F182: =IF(A182="","",VLOOKUP(C182,[2]语言配置表!$A:$E,5,FALSE)) -> 
A183: 5050 | B183: =IF(A183="","",VLOOKUP(A183,[1]ItemConfig!$A:$B,2,FALSE)) ->  | C183: =IF(A183="","",VLOOKUP(A183,[1]ItemConfig!$A:$D,4,FALSE)) ->  | D183: =IF(A183="","",VLOOKUP(A183,[1]ItemConfig!$A:$C,3,FALSE)) ->  | E183: =IF(A183="","",VLOOKUP(B183,[2]语言配置表!$A:$E,5,FALSE)) ->  | F183: =IF(A183="","",VLOOKUP(C183,[2]语言配置表!$A:$E,5,FALSE)) -> 
A184: 5051 | B184: =IF(A184="","",VLOOKUP(A184,[1]ItemConfig!$A:$B,2,FALSE)) ->  | C184: =IF(A184="","",VLOOKUP(A184,[1]ItemConfig!$A:$D,4,FALSE)) ->  | D184: =IF(A184="","",VLOOKUP(A184,[1]ItemConfig!$A:$C,3,FALSE)) ->  | E184: =IF(A184="","",VLOOKUP(B184,[2]语言配置表!$A:$E,5,FALSE)) ->  | F184: =IF(A184="","",VLOOKUP(C184,[2]语言配置表!$A:$E,5,FALSE)) -> 
A185: 5052 | B185: =IF(A185="","",VLOOKUP(A185,[1]ItemConfig!$A:$B,2,FALSE)) ->  | C185: =IF(A185="","",VLOOKUP(A185,[1]ItemConfig!$A:$D,4,FALSE)) ->  | D185: =IF(A185="","",VLOOKUP(A185,[1]ItemConfig!$A:$C,3,FALSE)) ->  | E185: =IF(A185="","",VLOOKUP(B185,[2]语言配置表!$A:$E,5,FALSE)) ->  | F185: =IF(A185="","",VLOOKUP(C185,[2]语言配置表!$A:$E,5,FALSE)) -> 
A186: 5053 | B186: =IF(A186="","",VLOOKUP(A186,[1]ItemConfig!$A:$B,2,FALSE)) ->  | C186: =IF(A186="","",VLOOKUP(A186,[1]ItemConfig!$A:$D,4,FALSE)) ->  | D186: =IF(A186="","",VLOOKUP(A186,[1]ItemConfig!$A:$C,3,FALSE)) ->  | E186: =IF(A186="","",VLOOKUP(B186,[2]语言配置表!$A:$E,5,FALSE)) ->  | F186: =IF(A186="","",VLOOKUP(C186,[2]语言配置表!$A:$E,5,FALSE)) -> 
A187: 5054 | B187: =IF(A187="","",VLOOKUP(A187,[1]ItemConfig!$A:$B,2,FALSE)) ->  | C187: =IF(A187="","",VLOOKUP(A187,[1]ItemConfig!$A:$D,4,FALSE)) ->  | D187: =IF(A187="","",VLOOKUP(A187,[1]ItemConfig!$A:$C,3,FALSE)) ->  | E187: =IF(A187="","",VLOOKUP(B187,[2]语言配置表!$A:$E,5,FALSE)) ->  | F187: =IF(A187="","",VLOOKUP(C187,[2]语言配置表!$A:$E,5,FALSE)) -> 
A188: 5055 | B188: =IF(A188="","",VLOOKUP(A188,[1]ItemConfig!$A:$B,2,FALSE)) ->  | C188: =IF(A188="","",VLOOKUP(A188,[1]ItemConfig!$A:$D,4,FALSE)) ->  | D188: =IF(A188="","",VLOOKUP(A188,[1]ItemConfig!$A:$C,3,FALSE)) ->  | E188: =IF(A188="","",VLOOKUP(B188,[2]语言配置表!$A:$E,5,FALSE)) ->  | F188: =IF(A188="","",VLOOKUP(C188,[2]语言配置表!$A:$E,5,FALSE)) -> 
A189: 5056 | B189: =IF(A189="","",VLOOKUP(A189,[1]ItemConfig!$A:$B,2,FALSE)) ->  | C189: =IF(A189="","",VLOOKUP(A189,[1]ItemConfig!$A:$D,4,FALSE)) ->  | D189: =IF(A189="","",VLOOKUP(A189,[1]ItemConfig!$A:$C,3,FALSE)) ->  | E189: =IF(A189="","",VLOOKUP(B189,[2]语言配置表!$A:$E,5,FALSE)) ->  | F189: =IF(A189="","",VLOOKUP(C189,[2]语言配置表!$A:$E,5,FALSE)) -> 
A190: 5057 | B190: =IF(A190="","",VLOOKUP(A190,[1]ItemConfig!$A:$B,2,FALSE)) ->  | C190: =IF(A190="","",VLOOKUP(A190,[1]ItemConfig!$A:$D,4,FALSE)) ->  | D190: =IF(A190="","",VLOOKUP(A190,[1]ItemConfig!$A:$C,3,FALSE)) ->  | E190: =IF(A190="","",VLOOKUP(B190,[2]语言配置表!$A:$E,5,FALSE)) ->  | F190: =IF(A190="","",VLOOKUP(C190,[2]语言配置表!$A:$E,5,FALSE)) -> 
A191: 5058 | B191: =IF(A191="","",VLOOKUP(A191,[1]ItemConfig!$A:$B,2,FALSE)) ->  | C191: =IF(A191="","",VLOOKUP(A191,[1]ItemConfig!$A:$D,4,FALSE)) ->  | D191: =IF(A191="","",VLOOKUP(A191,[1]ItemConfig!$A:$C,3,FALSE)) ->  | E191: =IF(A191="","",VLOOKUP(B191,[2]语言配置表!$A:$E,5,FALSE)) ->  | F191: =IF(A191="","",VLOOKUP(C191,[2]语言配置表!$A:$E,5,FALSE)) -> 
A192: 5059 | B192: =IF(A192="","",VLOOKUP(A192,[1]ItemConfig!$A:$B,2,FALSE)) ->  | C192: =IF(A192="","",VLOOKUP(A192,[1]ItemConfig!$A:$D,4,FALSE)) ->  | D192: =IF(A192="","",VLOOKUP(A192,[1]ItemConfig!$A:$C,3,FALSE)) ->  | E192: =IF(A192="","",VLOOKUP(B192,[2]语言配置表!$A:$E,5,FALSE)) ->  | F192: =IF(A192="","",VLOOKUP(C192,[2]语言配置表!$A:$E,5,FALSE)) -> 
A193: 5060 | B193: =IF(A193="","",VLOOKUP(A193,[1]ItemConfig!$A:$B,2,FALSE)) ->  | C193: =IF(A193="","",VLOOKUP(A193,[1]ItemConfig!$A:$D,4,FALSE)) ->  | D193: =IF(A193="","",VLOOKUP(A193,[1]ItemConfig!$A:$C,3,FALSE)) ->  | E193: =IF(A193="","",VLOOKUP(B193,[2]语言配置表!$A:$E,5,FALSE)) ->  | F193: =IF(A193="","",VLOOKUP(C193,[2]语言配置表!$A:$E,5,FALSE)) -> 
B194: =IF(A194="","",VLOOKUP(A194,[1]ItemConfig!$A:$B,2,FALSE)) ->  | C194: =IF(A194="","",VLOOKUP(A194,[1]ItemConfig!$A:$D,4,FALSE)) ->  | D194: =IF(A194="","",VLOOKUP(A194,[1]ItemConfig!$A:$C,3,FALSE)) ->  | E194: =IF(A194="","",VLOOKUP(B194,[2]语言配置表!$A:$E,5,FALSE)) ->  | F194: =IF(A194="","",VLOOKUP(C194,[2]语言配置表!$A:$E,5,FALSE)) -> 
A195: 5061 | B195: =IF(A195="","",VLOOKUP(A195,[1]ItemConfig!$A:$B,2,FALSE)) ->  | C195: =IF(A195="","",VLOOKUP(A195,[1]ItemConfig!$A:$D,4,FALSE)) ->  | D195: =IF(A195="","",VLOOKUP(A195,[1]ItemConfig!$A:$C,3,FALSE)) ->  | E195: =IF(A195="","",VLOOKUP(B195,[2]语言配置表!$A:$E,5,FALSE)) ->  | F195: =IF(A195="","",VLOOKUP(C195,[2]语言配置表!$A:$E,5,FALSE)) -> 
A196: 5062 | B196: =IF(A196="","",VLOOKUP(A196,[1]ItemConfig!$A:$B,2,FALSE)) ->  | C196: =IF(A196="","",VLOOKUP(A196,[1]ItemConfig!$A:$D,4,FALSE)) ->  | D196: =IF(A196="","",VLOOKUP(A196,[1]ItemConfig!$A:$C,3,FALSE)) ->  | E196: =IF(A196="","",VLOOKUP(B196,[2]语言配置表!$A:$E,5,FALSE)) ->  | F196: =IF(A196="","",VLOOKUP(C196,[2]语言配置表!$A:$E,5,FALSE)) -> 
A197: 5063 | B197: =IF(A197="","",VLOOKUP(A197,[1]ItemConfig!$A:$B,2,FALSE)) ->  | C197: =IF(A197="","",VLOOKUP(A197,[1]ItemConfig!$A:$D,4,FALSE)) ->  | D197: =IF(A197="","",VLOOKUP(A197,[1]ItemConfig!$A:$C,3,FALSE)) ->  | E197: =IF(A197="","",VLOOKUP(B197,[2]语言配置表!$A:$E,5,FALSE)) ->  | F197: =IF(A197="","",VLOOKUP(C197,[2]语言配置表!$A:$E,5,FALSE)) -> 
A198: 5064 | B198: =IF(A198="","",VLOOKUP(A198,[1]ItemConfig!$A:$B,2,FALSE)) ->  | C198: =IF(A198="","",VLOOKUP(A198,[1]ItemConfig!$A:$D,4,FALSE)) ->  | D198: =IF(A198="","",VLOOKUP(A198,[1]ItemConfig!$A:$C,3,FALSE)) ->  | E198: =IF(A198="","",VLOOKUP(B198,[2]语言配置表!$A:$E,5,FALSE)) ->  | F198: =IF(A198="","",VLOOKUP(C198,[2]语言配置表!$A:$E,5,FALSE)) -> 
A199: 5065 | B199: =IF(A199="","",VLOOKUP(A199,[1]ItemConfig!$A:$B,2,FALSE)) ->  | C199: =IF(A199="","",VLOOKUP(A199,[1]ItemConfig!$A:$D,4,FALSE)) ->  | D199: =IF(A199="","",VLOOKUP(A199,[1]ItemConfig!$A:$C,3,FALSE)) ->  | E199: =IF(A199="","",VLOOKUP(B199,[2]语言配置表!$A:$E,5,FALSE)) ->  | F199: =IF(A199="","",VLOOKUP(C199,[2]语言配置表!$A:$E,5,FALSE)) -> 
A200: 5066 | B200: =IF(A200="","",VLOOKUP(A200,[1]ItemConfig!$A:$B,2,FALSE)) ->  | C200: =IF(A200="","",VLOOKUP(A200,[1]ItemConfig!$A:$D,4,FALSE)) ->  | D200: =IF(A200="","",VLOOKUP(A200,[1]ItemConfig!$A:$C,3,FALSE)) ->  | E200: =IF(A200="","",VLOOKUP(B200,[2]语言配置表!$A:$E,5,FALSE)) ->  | F200: =IF(A200="","",VLOOKUP(C200,[2]语言配置表!$A:$E,5,FALSE)) -> 
... 2244 more rows

Sheet 英雄招募相关
B1: 火R | C1: 冰R | D1: 雷R | F1: 火SR | G1: 冰SR | H1: 雷SR | J1: 火SSR | K1: 冰SSR | L1: 雷SSR | T1: 火SSR | U1: 冰SSR | V1: 雷SSR
A2: 常驻 | B2: 3401 | C2: 3201 | D2: 3103 | F2: 3206 | G2: 3105 | H2: 3202 | J2: 3101 | K2: 3104 | L2: 3102 | T2: =IF(J2="","",J2+4000) -> 7101 | U2: =IF(K2="","",K2+4000) -> 7104 | V2: 7102
B3: 3702 | C3: 3205 | D3: 3106 | F3: 3404 | G3: 3504 | H3: 3303 | J3: 3304 | K3: 3403 | L3: 3203 | T3: =IF(J3="","",J3+4000) -> 7304 | U3: =IF(K3="","",K3+4000) -> 7403 | V3: =IF(L3="","",L3+4000) -> 7203
C4: 3301 | F4: 3501 | G4: 3603 | H4: 3704 | J4: 3502 | K4: 3601 | L4: 3305 | T4: 7502 | U4: 7601 | V4: 7305
F5: 3503 | G5: 3703 | H5: 3705 | J5: 3602 | L5: 3402 | T5: 7602 | V5: 7402
O6: 新增SSR | P6: 是否进普池 | Q6: 系别 | R6: 名称
A7: 新增 | J7: =IF(AND($P7=1,$Q7=1),$O7,"") ->  | K7: =IF(AND($P7=1,$Q7=2),$O7,"") ->  | L7: =IF(AND($P7=1,$Q7=3),$O7,"") ->  | N7: 2001 | O7: 3302 | Q7: =IF(O7="","",VLOOKUP(O7-3000,[3]HeroModelConfig!$A:$E,5,FALSE)) ->  | R7: =IF(Q7="","",VLOOKUP(O7-3000,[3]HeroModelConfig!$A:$C,3,FALSE)) -> 
J8: =IF(AND($P8=1,$Q8=1),$O8,"") ->  | K8: =IF(AND($P8=1,$Q8=2),$O8,"") ->  | L8: =IF(AND($P8=1,$Q8=3),$O8,"") ->  | N8: 2002 | O8: 3204 | Q8: =IF(O8="","",VLOOKUP(O8-3000,[3]HeroModelConfig!$A:$E,5,FALSE)) ->  | R8: =IF(Q8="","",VLOOKUP(O8-3000,[3]HeroModelConfig!$A:$C,3,FALSE)) -> 
N9: 2003 | Q9: =IF(O9="","",VLOOKUP(O9-3000,[3]HeroModelConfig!$A:$E,5,FALSE)) ->  | R9: =IF(Q9="","",VLOOKUP(O9-3000,[3]HeroModelConfig!$A:$C,3,FALSE)) -> 
N10: 2004 | Q10: =IF(O10="","",VLOOKUP(O10-3000,[3]HeroModelConfig!$A:$E,5,FALSE)) ->  | R10: =IF(Q10="","",VLOOKUP(O10-3000,[3]HeroModelConfig!$A:$C,3,FALSE)) -> 
N11: 2005 | Q11: =IF(O11="","",VLOOKUP(O11-3000,[3]HeroModelConfig!$A:$E,5,FALSE)) ->  | R11: =IF(Q11="","",VLOOKUP(O11-3000,[3]HeroModelConfig!$A:$C,3,FALSE)) -> 
N12: 2006 | Q12: =IF(O12="","",VLOOKUP(O12-3000,[3]HeroModelConfig!$A:$E,5,FALSE)) ->  | R12: =IF(Q12="","",VLOOKUP(O12-3000,[3]HeroModelConfig!$A:$C,3,FALSE)) -> 
N13: 2007 | Q13: =IF(O13="","",VLOOKUP(O13-3000,[3]HeroModelConfig!$A:$E,5,FALSE)) ->  | R13: =IF(Q13="","",VLOOKUP(O13-3000,[3]HeroModelConfig!$A:$C,3,FALSE)) -> 
N14: 2008 | Q14: =IF(O14="","",VLOOKUP(O14-3000,[3]HeroModelConfig!$A:$E,5,FALSE)) ->  | R14: =IF(Q14="","",VLOOKUP(O14-3000,[3]HeroModelConfig!$A:$C,3,FALSE)) -> 
N15: 2009 | Q15: =IF(O15="","",VLOOKUP(O15-3000,[3]HeroModelConfig!$A:$E,5,FALSE)) ->  | R15: =IF(Q15="","",VLOOKUP(O15-3000,[3]HeroModelConfig!$A:$C,3,FALSE)) -> 
N16: 2010 | Q16: =IF(O16="","",VLOOKUP(O16-3000,[3]HeroModelConfig!$A:$E,5,FALSE)) ->  | R16: =IF(Q16="","",VLOOKUP(O16-3000,[3]HeroModelConfig!$A:$C,3,FALSE)) -> 
N17: 2011 | Q17: =IF(O17="","",VLOOKUP(O17-3000,[3]HeroModelConfig!$A:$E,5,FALSE)) ->  | R17: =IF(Q17="","",VLOOKUP(O17-3000,[3]HeroModelConfig!$A:$C,3,FALSE)) -> 
N18: 2012 | Q18: =IF(O18="","",VLOOKUP(O18-3000,[3]HeroModelConfig!$A:$E,5,FALSE)) ->  | R18: =IF(Q18="","",VLOOKUP(O18-3000,[3]HeroModelConfig!$A:$C,3,FALSE)) -> 
N19: 2013 | Q19: =IF(O19="","",VLOOKUP(O19-3000,[3]HeroModelConfig!$A:$E,5,FALSE)) ->  | R19: =IF(Q19="","",VLOOKUP(O19-3000,[3]HeroModelConfig!$A:$C,3,FALSE)) -> 
N20: 2014 | Q20: =IF(O20="","",VLOOKUP(O20-3000,[3]HeroModelConfig!$A:$E,5,FALSE)) ->  | R20: =IF(Q20="","",VLOOKUP(O20-3000,[3]HeroModelConfig!$A:$C,3,FALSE)) -> 
N21: 2015 | Q21: =IF(O21="","",VLOOKUP(O21-3000,[3]HeroModelConfig!$A:$E,5,FALSE)) ->  | R21: =IF(Q21="","",VLOOKUP(O21-3000,[3]HeroModelConfig!$A:$C,3,FALSE)) -> 
N22: 2016 | Q22: =IF(O22="","",VLOOKUP(O22-3000,[3]HeroModelConfig!$A:$E,5,FALSE)) ->  | R22: =IF(Q22="","",VLOOKUP(O22-3000,[3]HeroModelConfig!$A:$C,3,FALSE)) -> 
N23: 2017 | Q23: =IF(O23="","",VLOOKUP(O23-3000,[3]HeroModelConfig!$A:$E,5,FALSE)) ->  | R23: =IF(Q23="","",VLOOKUP(O23-3000,[3]HeroModelConfig!$A:$C,3,FALSE)) -> 
N24: 2018 | Q24: =IF(O24="","",VLOOKUP(O24-3000,[3]HeroModelConfig!$A:$E,5,FALSE)) ->  | R24: =IF(Q24="","",VLOOKUP(O24-3000,[3]HeroModelConfig!$A:$C,3,FALSE)) -> 
N25: 2019 | Q25: =IF(O25="","",VLOOKUP(O25-3000,[3]HeroModelConfig!$A:$E,5,FALSE)) ->  | R25: =IF(Q25="","",VLOOKUP(O25-3000,[3]HeroModelConfig!$A:$C,3,FALSE)) -> 
N26: 2020 | Q26: =IF(O26="","",VLOOKUP(O26-3000,[3]HeroModelConfig!$A:$E,5,FALSE)) ->  | R26: =IF(Q26="","",VLOOKUP(O26-3000,[3]HeroModelConfig!$A:$C,3,FALSE)) -> 
N27: 2021 | Q27: =IF(O27="","",VLOOKUP(O27-3000,[3]HeroModelConfig!$A:$E,5,FALSE)) ->  | R27: =IF(Q27="","",VLOOKUP(O27-3000,[3]HeroModelConfig!$A:$C,3,FALSE)) -> 
N28: 2022 | Q28: =IF(O28="","",VLOOKUP(O28-3000,[3]HeroModelConfig!$A:$E,5,FALSE)) ->  | R28: =IF(Q28="","",VLOOKUP(O28-3000,[3]HeroModelConfig!$A:$C,3,FALSE)) -> 
N29: 2023 | Q29: =IF(O29="","",VLOOKUP(O29-3000,[3]HeroModelConfig!$A:$E,5,FALSE)) ->  | R29: =IF(Q29="","",VLOOKUP(O29-3000,[3]HeroModelConfig!$A:$C,3,FALSE)) -> 
N30: 2024 | Q30: =IF(O30="","",VLOOKUP(O30-3000,[3]HeroModelConfig!$A:$E,5,FALSE)) ->  | R30: =IF(Q30="","",VLOOKUP(O30-3000,[3]HeroModelConfig!$A:$C,3,FALSE)) -> 
N31: 2025 | Q31: =IF(O31="","",VLOOKUP(O31-3000,[3]HeroModelConfig!$A:$E,5,FALSE)) ->  | R31: =IF(Q31="","",VLOOKUP(O31-3000,[3]HeroModelConfig!$A:$C,3,FALSE)) -> 
N32: 2026 | Q32: =IF(O32="","",VLOOKUP(O32-3000,[3]HeroModelConfig!$A:$E,5,FALSE)) ->  | R32: =IF(Q32="","",VLOOKUP(O32-3000,[3]HeroModelConfig!$A:$C,3,FALSE)) -> 
N33: 2027 | Q33: =IF(O33="","",VLOOKUP(O33-3000,[3]HeroModelConfig!$A:$E,5,FALSE)) ->  | R33: =IF(Q33="","",VLOOKUP(O33-3000,[3]HeroModelConfig!$A:$C,3,FALSE)) -> 
N34: 2028 | Q34: =IF(O34="","",VLOOKUP(O34-3000,[3]HeroModelConfig!$A:$E,5,FALSE)) ->  | R34: =IF(Q34="","",VLOOKUP(O34-3000,[3]HeroModelConfig!$A:$C,3,FALSE)) -> 
N35: 2029 | Q35: =IF(O35="","",VLOOKUP(O35-3000,[3]HeroModelConfig!$A:$E,5,FALSE)) ->  | R35: =IF(Q35="","",VLOOKUP(O35-3000,[3]HeroModelConfig!$A:$C,3,FALSE)) -> 
N36: 2030 | Q36: =IF(O36="","",VLOOKUP(O36-3000,[3]HeroModelConfig!$A:$E,5,FALSE)) ->  | R36: =IF(Q36="","",VLOOKUP(O36-3000,[3]HeroModelConfig!$A:$C,3,FALSE)) -> 
